Workbook

Sheet 대덕구주민수현황
A1: 대전광역시 대덕구 주민등록 인구현황
A2: [ 2025. 7. 31. 기준 ]
A3: 동 별 | B3: 주 민 수 및 세 대 수 | I3: 10대 이하 (0세 ~ 19세) | L3: 20대 | O3: 30대 | R3: 40대 | U3: 50대 | X3: 60대 | AA3: 70대 이상 | AD3: 65세 이상
B4: 계 | C4: 전월계 | D4: 증감 | E4: 증감비 (%) | F4: 남 | G4: 여 | H4: 세대수 | I4: 계 | J4: 전월계 | K4: 증감 | L4: 계 | M4: 전월계 | N4: 증감 | O4: 계 | P4: 전월계 | Q4: 증감 | R4: 계 | S4: 전월계 | T4: 증감 | U4: 계 | V4: 전월계 | W4: 증감 | X4: 계 | Y4: 전월계 | Z4: 증감 | AA4: 계 | AB4: 전월계 | AC4: 증감 | AD4: 계 | AE4: 전월계 | AF4: 증감
A5: 계 | B5: =SUM(B6:B17) -> 166691 | C5: =SUM(C6:C17) -> 166628 | D5: =SUM(D6:D17) -> 63 | E5: =(D5/B5)*100 -> 0.03779448201 | F5: =SUM(F6:F17) -> 84637 | G5: 82054 | H5: 81128 | I5: 21436 | J5: 21488 | K5: -52 | L5: =SUM(M6:M17) -> 19515 | M5: =SUM(M6:M17) -> 19515 | N5: =SUM(N6:N17) -> -36 | O5: =SUM(O6:O17) -> 19522 | P5: =SUM(P6:P17) -> 19431 | Q5: 91 | R5: =SUM(R6:R17) -> 21740 | S5: =SUM(S6:S17) -> 21786 | T5: -46 | U5: =SUM(U6:U17) -> 32174 | V5: =SUM(V6:V17) -> 32183 | W5: =SUM(W6:W17) -> -9 | X5: =SUM(X6:X17) -> 29581 | Y5: =SUM(Y6:Y17) -> 29554 | Z5: 27 | AA5: =SUM(AA6:AA17) -> 22759 | AB5: =SUM(AB6:AB17) -> 22671 | AC5: 88 | AD5: =SUM(AD6:AD17) -> 36464 | AE5: =SUM(AE6:AE17) -> 36333 | AF5: =SUM(AF6:AF17) -> 131
A6: 오 정 동 | B6: 13331 | C6: 13358 | D6: =B6-C6 -> -27 | E6: -0.2025354437 | F6: 6966 | G6: 6365 | H6: 7461 | I6: 1261 | J6: 1280 | K6: =I6-J6 -> -19 | L6: 2019 | M6: 2004 | N6: =L6-M6 -> 15 | O6: 1316 | P6: 1323 | Q6: =O6-P6 -> -7 | R6: 1434 | S6: 1448 | T6: =R6-S6 -> -14 | U6: 2269 | V6: 2283 | W6: =U6-V6 -> -14 | X6: 2745 | Y6: 2741 | Z6: =X6-Y6 -> 4 | AA6: 2287 | AB6: 2279 | AC6: =AA6-AB6 -> 8 | AD6: 3641 | AE6: 3619 | AF6: =AD6-AE6 -> 22
A7: 대 화 동 | B7: 5328 | C7: 5364 | D7: -36 | E7: -0.6756756757 | F7: 2784 | G7: 2544 | H7: 2854 | I7: 467 | J7: 478 | K7: -11 | L7: 499 | M7: 505 | N7: -6 | O7: 557 | P7: 558 | Q7: -1 | R7: 719 | S7: 722 | T7: -3 | U7: 1023 | V7: 1039 | W7: -16 | X7: 1060 | Y7: 1063 | Z7: -3 | AA7: 1003 | AB7: 999 | AC7: 4 | AD7: 1526 | AE7: 1529 | AF7: -3
A8: 회 덕 동 | B8: 12312 | C8: 12385 | D8: -73 | E8: -0.5929174789 | F8: 6263 | G8: 6049 | H8: 5986 | I8: 1334 | J8: 1345 | K8: -11 | L8: 1140 | M8: 1142 | N8: -2 | O8: 1434 | P8: 1446 | Q8: -12 | R8: 1429 | S8: 1444 | T8: -15 | U8: 2316 | V8: 2336 | W8: -20 | X8: 2522 | Y8: 2535 | Z8: -13 | AA8: 2137 | AB8: 2137 | AC8: 0 | AD8: 3363 | AE8: 3376 | AF8: -13
A9: 비 래 동 | B9: 14567 | C9: 14621 | D9: -54 | E9: -0.3707008993 | F9: 7192 | G9: 7375 | H9: 6844 | I9: 1701 | J9: 1717 | K9: -16 | L9: 1688 | M9: 1716 | N9: -28 | O9: 1307 | P9: 1308 | Q9: -1 | R9: 1761 | S9: 1764 | T9: -3 | U9: 3047 | V9: 3054 | W9: -7 | X9: 2798 | Y9: 2797 | Z9: 1 | AA9: 2265 | AB9: 2265 | AC9: 0 | AD9: 3617 | AE9: 3605 | AF9: 12
A10: 송 촌 동 | B10: 26664 | C10: 26232 | D10: 432 | E10: 1.620162016 | F10: 13234 | G10: 13430 | H10: 10937 | I10: 4691 | J10: 4596 | K10: 95 | L10: 3290 | M10: 3275 | N10: 15 | O10: 2842 | P10: 2725 | Q10: 117 | R10: 3910 | S10: 3845 | T10: 65 | U10: 5801 | V10: 5724 | W10: 77 | X10: 3883 | Y10: 3838 | Z10: 45 | AA10: 2247 | AB10: 2229 | AC10: 18 | AD10: 3831 | AE10: 3798 | AF10: 33
A11: 중 리 동 | B11: 17622 | C11: 17664 | D11: -42 | E11: -0.2383384406 | F11: 9256 | G11: 8366 | H11: 10147 | I11: 1665 | J11: 1685 | K11: -20 | L11: 2293 | M11: 2298 | N11: -5 | O11: 2003 | P11: 1995 | Q11: 8 | R11: 2186 | S11: 2209 | T11: -23 | U11: 3459 | V11: 3454 | W11: 5 | X11: 3415 | Y11: 3430 | Z11: -15 | AA11: 2601 | AB11: 2593 | AC11: 8 | AD11: 4233 | AE11: 4227 | AF11: 6
A12: 법 1 동 | B12: 12071 | C12: 12100 | D12: -29 | E12: -0.2402452158 | F12: 5631 | G12: 6440 | H12: 5856 | I12: 1490 | J12: 1495 | K12: -5 | L12: 1195 | M12: 1202 | N12: -7 | O12: 1430 | P12: 1433 | Q12: -3 | R12: 1431 | S12: 1440 | T12: -9 | U12: 2266 | V12: 2279 | W12: -13 | X12: 2253 | Y12: 2251 | Z12: 2 | AA12: 2006 | AB12: 2000 | AC12: 6 | AD12: 3079 | AE12: 3069 | AF12: 10
A13: 법 2 동 | B13: 14569 | C13: 14588 | D13: -19 | E13: -0.1304138925 | F13: 7038 | G13: 7531 | H13: 6757 | I13: 1721 | J13: 1736 | K13: -15 | L13: 1551 | M13: 1554 | N13: -3 | O13: 1295 | P13: 1298 | Q13: -3 | R13: 1655 | S13: 1674 | T13: -19 | U13: 2902 | V13: 2894 | W13: 8 | X13: 3125 | Y13: 3124 | Z13: 1 | AA13: 2320 | AB13: 2308 | AC13: 12 | AD13: 3816 | AE13: 3787 | AF13: 29
A14: 신 탄 진 | B14: 16048 | C14: 16025 | D14: 23 | E14: 0.1433200399 | F14: 8262 | G14: 7786 | H14: 7883 | I14: 1992 | J14: 2000 | K14: -8 | L14: 1788 | M14: 1795 | N14: -7 | O14: 2461 | P14: 2443 | Q14: 18 | R14: 2017 | S14: 2016 | T14: 1 | U14: 2938 | V14: 2950 | W14: -12 | X14: 2683 | Y14: 2674 | Z14: 9 | AA14: 2169 | AB14: 2147 | AC14: 22 | AD14: 3360 | AE14: 3334 | AF14: 26
A15: 석 봉 동 | B15: 15843 | C15: 15877 | D15: -34 | E15: -0.2146058196 | F15: 8094 | G15: 7749 | H15: 6667 | I15: 3132 | J15: 3155 | K15: -23 | L15: 1557 | M15: 1555 | N15: 2 | O15: 2431 | P15: 2438 | Q15: -7 | R15: 2752 | S15: 2758 | T15: -6 | U15: 2564 | V15: 2574 | W15: -10 | X15: 2097 | Y15: 2095 | Z15: 2 | AA15: 1310 | AB15: 1302 | AC15: 8 | AD15: 2235 | AE15: 2224 | AF15: 11
A16: 덕 암 동 | B16: 12431 | C16: 12504 | D16: -73 | E16: -0.5872415735 | F16: 6664 | G16: 5767 | H16: 6581 | I16: 1272 | J16: 1285 | K16: -13 | L16: 1647 | M16: 1661 | N16: -14 | O16: 1567 | P16: 1584 | Q16: -17 | R16: 1506 | S16: 1522 | T16: -16 | U16: 2485 | V16: 2494 | W16: -9 | X16: 2107 | Y16: 2111 | Z16: -4 | AA16: 1847 | AB16: 1847 | AC16: 0 | AD16: 2815 | AE16: 2823 | AF16: -8
A17: 목 상 동 | B17: 5905 | C17: 5910 | D17: -5 | E17: -0.08467400508 | F17: 3253 | G17: 2652 | H17: 3155 | I17: 710 | J17: 716 | K17: -6 | L17: 812 | M17: 808 | N17: 4 | O17: 879 | P17: 880 | Q17: -1 | R17: 940 | S17: 944 | T17: -4 | U17: 1104 | V17: 1102 | W17: 2 | X17: 893 | Y17: 895 | Z17: -2 | AA17: 567 | AB17: 565 | AC17: 2 | AD17: 948 | AE17: 942 | AF17: 6

Sheet 기관별연령별인구통계(2025.7.)
B2: 연령별(만)인구현황(기관별)
B4: 행정기관 : 대전광역시 대덕구 | M4: 출력일자 : | N4: 2025.08.01
B5: 통계년월 : 2025년 07월 현재
B6: 연령 | D6: 대덕구 | G6: 오정동 | J6: 대화동 | M6: 회덕동 | P6: 비래동 | S6: 송촌동 | V6: 중리동 | Y6: 신탄진동 | AB6: 석봉동 | AE6: 덕암동 | AH6: 목상동 | AK6: 법1동 | AN6: 법2동
D7: 인구수 | E7: 구성비 | F7: 성비 | G7: 인구수 | H7: 구성비 | I7: 성비 | J7: 인구수 | K7: 구성비 | L7: 성비 | M7: 인구수 | N7: 구성비 | O7: 성비 | P7: 인구수 | Q7: 구성비 | R7: 성비 | S7: 인구수 | T7: 구성비 | U7: 성비 | V7: 인구수 | W7: 구성비 | X7: 성비 | Y7: 인구수 | Z7: 구성비 | AA7: 성비 | AB7: 인구수 | AC7: 구성비 | AD7: 성비 | AE7: 인구수 | AF7: 구성비 | AG7: 성비 | AH7: 인구수 | AI7: 구성비 | AJ7: 성비 | AK7: 인구수 | AL7: 구성비 | AM7: 성비 | AN7: 인구수 | AO7: 구성비 | AP7: 성비
B8: 합 계 | C8: 계 | D8: 166,691 | E8: 100.00 | F8: 103.15 | G8: 13,331 | H8: 100.00 | I8: 109.44 | J8: 5,328 | K8: 100.00 | L8: 109.43 | M8: 12,312 | N8: 100.00 | O8: 103.54 | P8: 14,567 | Q8: 100.00 | R8: 97.52 | S8: 26,664 | T8: 100.00 | U8: 98.54 | V8: 17,622 | W8: 100.00 | X8: 110.64 | Y8: 16,048 | Z8: 100.00 | AA8: 106.11 | AB8: 15,843 | AC8: 100.00 | AD8: 104.45 | AE8: 12,431 | AF8: 100.00 | AG8: 115.55 | AH8: 5,905 | AI8: 100.00 | AJ8: 122.66 | AK8: 12,071 | AL8: 100.00 | AM8: 87.44 | AN8: 14,569 | AO8: 100.00 | AP8: 93.45
C9: 남 | D9: 84,637 | E9: 100.00 | G9: 6,966 | H9: 100.00 | J9: 2,784 | K9: 100.00 | M9: 6,263 | N9: 100.00 | P9: 7,192 | Q9: 100.00 | S9: 13,234 | T9: 100.00 | V9: 9,256 | W9: 100.00 | Y9: 8,262 | Z9: 100.00 | AB9: 8,094 | AC9: 100.00 | AE9: 6,664 | AF9: 100.00 | AH9: 3,253 | AI9: 100.00 | AK9: 5,631 | AL9: 100.00 | AN9: 7,038 | AO9: 100.00
C10: 여 | D10: 82,054 | E10: 100.00 | G10: 6,365 | H10: 100.00 | J10: 2,544 | K10: 100.00 | M10: 6,049 | N10: 100.00 | P10: 7,375 | Q10: 100.00 | S10: 13,430 | T10: 100.00 | V10: 8,366 | W10: 100.00 | Y10: 7,786 | Z10: 100.00 | AB10: 7,749 | AC10: 100.00 | AE10: 5,767 | AF10: 100.00 | AH10: 2,652 | AI10: 100.00 | AK10: 6,440 | AL10: 100.00 | AN10: 7,531 | AO10: 100.00
B11: 0세 | C11: 계 | D11: 717 | E11: 0.43 | F11: 101.40 | G11: 37 | H11: 0.28 | I11: 146.67 | J11: 9 | K11: 0.17 | L11: 80.00 | M11: 54 | N11: 0.44 | O11: 50.00 | P11: 25 | Q11: 0.17 | R11: 127.27 | S11: 121 | T11: 0.45 | U11: 89.06 | V11: 49 | W11: 0.28 | X11: 75.00 | Y11: 128 | Z11: 0.80 | AA11: 128.57 | AB11: 108 | AC11: 0.68 | AD11: 111.76 | AE11: 53 | AF11: 0.43 | AG11: 130.43 | AH11: 25 | AI11: 0.42 | AJ11: 78.57 | AK11: 69 | AL11: 0.57 | AM11: 97.14 | AN11: 39 | AO11: 0.27 | AP11: 116.67
C12: 남 | D12: 361 | E12: 0.43 | G12: 22 | H12: 0.32 | J12: 4 | K12: 0.14 | M12: 18 | N12: 0.29 | P12: 14 | Q12: 0.19 | S12: 57 | T12: 0.43 | V12: 21 | W12: 0.23 | Y12: 72 | Z12: 0.87 | AB12: 57 | AC12: 0.70 | AE12: 30 | AF12: 0.45 | AH12: 11 | AI12: 0.34 | AK12: 34 | AL12: 0.60 | AN12: 21 | AO12: 0.30
C13: 여 | D13: 356 | E13: 0.43 | G13: 15 | H13: 0.24 | J13: 5 | K13: 0.20 | M13: 36 | N13: 0.60 | P13: 11 | Q13: 0.15 | S13: 64 | T13: 0.48 | V13: 28 | W13: 0.33 | Y13: 56 | Z13: 0.72 | AB13: 51 | AC13: 0.66 | AE13: 23 | AF13: 0.40 | AH13: 14 | AI13: 0.53 | AK13: 35 | AL13: 0.54 | AN13: 18 | AO13: 0.24
B14: 1세 | C14: 계 | D14: 673 | E14: 0.40 | F14: 102.71 | G14: 30 | H14: 0.23 | I14: 114.29 | J14: 10 | K14: 0.19 | L14: 150.00 | M14: 51 | N14: 0.41 | O14: 121.74 | P14: 35 | Q14: 0.24 | R14: 105.88 | S14: 133 | T14: 0.50 | U14: 72.73 | V14: 34 | W14: 0.19 | X14: 126.67 | Y14: 121 | Z14: 0.75 | AA14: 124.07 | AB14: 96 | AC14: 0.61 | AD14: 108.70 | AE14: 33 | AF14: 0.27 | AG14: 73.68 | AH14: 19 | AI14: 0.32 | AJ14: 171.43 | AK14: 65 | AL14: 0.54 | AM14: 91.18 | AN14: 46 | AO14: 0.32 | AP14: 109.09
C15: 남 | D15: 341 | E15: 0.40 | G15: 16 | H15: 0.23 | J15: 6 | K15: 0.22 | M15: 28 | N15: 0.45 | P15: 18 | Q15: 0.25 | S15: 56 | T15: 0.42 | V15: 19 | W15: 0.21 | Y15: 67 | Z15: 0.81 | AB15: 50 | AC15: 0.62 | AE15: 14 | AF15: 0.21 | AH15: 12 | AI15: 0.37 | AK15: 31 | AL15: 0.55 | AN15: 24 | AO15: 0.34
C16: 여 | D16: 332 | E16: 0.40 | G16: 14 | H16: 0.22 | J16: 4 | K16: 0.16 | M16: 23 | N16: 0.38 | P16: 17 | Q16: 0.23 | S16: 77 | T16: 0.57 | V16: 15 | W16: 0.18 | Y16: 54 | Z16: 0.69 | AB16: 46 | AC16: 0.59 | AE16: 19 | AF16: 0.33 | AH16: 7 | AI16: 0.26 | AK16: 34 | AL16: 0.53 | AN16: 22 | AO16: 0.29
B17: 2세 | C17: 계 | D17: 752 | E17: 0.45 | F17: 123.81 | G17: 29 | H17: 0.22 | I17: 107.14 | J17: 11 | K17: 0.21 | L17: 175.00 | M17: 63 | N17: 0.51 | O17: 186.36 | P17: 38 | Q17: 0.26 | R17: 123.53 | S17: 126 | T17: 0.47 | U17: 137.74 | V17: 28 | W17: 0.16 | X17: 250.00 | Y17: 125 | Z17: 0.78 | AA17: 76.06 | AB17: 146 | AC17: 0.92 | AD17: 124.62 | AE17: 47 | AF17: 0.38 | AG17: 147.37 | AH17: 21 | AI17: 0.36 | AJ17: 110.00 | AK17: 69 | AL17: 0.57 | AM17: 130.00 | AN17: 49 | AO17: 0.34 | AP17: 113.04
C18: 남 | D18: 416 | E18: 0.49 | G18: 15 | H18: 0.22 | J18: 7 | K18: 0.25 | M18: 41 | N18: 0.65 | P18: 21 | Q18: 0.29 | S18: 73 | T18: 0.55 | V18: 20 | W18: 0.22 | Y18: 54 | Z18: 0.65 | AB18: 81 | AC18: 1.00 | AE18: 28 | AF18: 0.42 | AH18: 11 | AI18: 0.34 | AK18: 39 | AL18: 0.69 | AN18: 26 | AO18: 0.37
C19: 여 | D19: 336 | E19: 0.41 | G19: 14 | H19: 0.22 | J19: 4 | K19: 0.16 | M19: 22 | N19: 0.36 | P19: 17 | Q19: 0.23 | S19: 53 | T19: 0.39 | V19: 8 | W19: 0.10 | Y19: 71 | Z19: 0.91 | AB19: 65 | AC19: 0.84 | AE19: 19 | AF19: 0.33 | AH19: 10 | AI19: 0.38 | AK19: 30 | AL19: 0.47 | AN19: 23 | AO19: 0.31
B20: 3세 | C20: 계 | D20: 666 | E20: 0.40 | F20: 94.74 | G20: 35 | H20: 0.26 | I20: 133.33 | J20: 12 | K20: 0.23 | L20: 71.43 | M20: 54 | N20: 0.44 | O20: 107.69 | P20: 36 | Q20: 0.25 | R20: 125.00 | S20: 126 | T20: 0.47 | U20: 90.91 | V20: 39 | W20: 0.22 | X20: 95.00 | Y20: 82 | Z20: 0.51 | AA20: 78.26 | AB20: 135 | AC20: 0.85 | AD20: 84.93 | AE20: 32 | AF20: 0.26 | AG20: 113.33 | AH20: 23 | AI20: 0.39 | AJ20: 64.29 | AK20: 58 | AL20: 0.48 | AM20: 87.10 | AN20: 34 | AO20: 0.23 | AP20: 161.54
C21: 남 | D21: 324 | E21: 0.38 | G21: 20 | H21: 0.29 | J21: 5 | K21: 0.18 | M21: 28 | N21: 0.45 | P21: 20 | Q21: 0.28 | S21: 60 | T21: 0.45 | V21: 19 | W21: 0.21 | Y21: 36 | Z21: 0.44 | AB21: 62 | AC21: 0.77 | AE21: 17 | AF21: 0.26 | AH21: 9 | AI21: 0.28 | AK21: 27 | AL21: 0.48 | AN21: 21 | AO21: 0.30
C22: 여 | D22: 342 | E22: 0.42 | G22: 15 | H22: 0.24 | J22: 7 | K22: 0.28 | M22: 26 | N22: 0.43 | P22: 16 | Q22: 0.22 | S22: 66 | T22: 0.49 | V22: 20 | W22: 0.24 | Y22: 46 | Z22: 0.59 | AB22: 73 | AC22: 0.94 | AE22: 15 | AF22: 0.26 | AH22: 14 | AI22: 0.53 | AK22: 31 | AL22: 0.48 | AN22: 13 | AO22: 0.17
B23: 4세 | C23: 계 | D23: 683 | E23: 0.41 | F23: 109.51 | G23: 31 | H23: 0.23 | I23: 106.67 | J23: 15 | K23: 0.28 | L23: 114.29 | M23: 46 | N23: 0.37 | O23: 119.05 | P23: 33 | Q23: 0.23 | R23: 94.12 | S23: 150 | T23: 0.56 | U23: 97.37 | V23: 48 | W23: 0.27 | X23: 152.63 | Y23: 64 | Z23: 0.40 | AA23: 82.86 | AB23: 125 | AC23: 0.79 | AD23: 135.85 | AE23: 50 | AF23: 0.40 | AG23: 100.00 | AH23: 21 | AI23: 0.36 | AJ23: 133.33 | AK23: 64 | AL23: 0.53 | AM23: 100.00 | AN23: 36 | AO23: 0.25 | AP23: 111.76
C24: 남 | D24: 357 | E24: 0.42 | G24: 16 | H24: 0.23 | J24: 8 | K24: 0.29 | M24: 25 | N24: 0.40 | P24: 16 | Q24: 0.22 | S24: 74 | T24: 0.56 | V24: 29 | W24: 0.31 | Y24: 29 | Z24: 0.35 | AB24: 72 | AC24: 0.89 | AE24: 25 | AF24: 0.38 | AH24: 12 | AI24: 0.37 | AK24: 32 | AL24: 0.57 | AN24: 19 | AO24: 0.27
C25: 여 | D25: 326 | E25: 0.40 | G25: 15 | H25: 0.24 | J25: 7 | K25: 0.28 | M25: 21 | N25: 0.35 | P25: 17 | Q25: 0.23 | S25: 76 | T25: 0.57 | V25: 19 | W25: 0.23 | Y25: 35 | Z25: 0.45 | AB25: 53 | AC25: 0.68 | AE25: 25 | AF25: 0.43 | AH25: 9 | AI25: 0.34 | AK25: 32 | AL25: 0.50 | AN25: 17 | AO25: 0.23
B26: 5세 | C26: 계 | D26: 707 | E26: 0.42 | F26: 105.52 | G26: 29 | H26: 0.22 | I26: 222.22 | J26: 12 | K26: 0.23 | L26: 33.33 | M26: 56 | N26: 0.45 | O26: 107.41 | P26: 42 | Q26: 0.29 | R26: 90.91 | S26: 127 | T26: 0.48 | U26: 118.97 | V26: 45 | W26: 0.26 | X26: 114.29 | Y26: 88 | Z26: 0.55 | AA26: 87.23 | AB26: 132 | AC26: 0.83 | AD26: 112.90 | AE26: 51 | AF26: 0.41 | AG26: 82.14 | AH26: 25 | AI26: 0.42 | AJ26: 78.57 | AK26: 43 | AL26: 0.36 | AM26: 72.00 | AN26: 57 | AO26: 0.39 | AP26: 159.09
C27: 남 | D27: 363 | E27: 0.43 | G27: 20 | H27: 0.29 | J27: 3 | K27: 0.11 | M27: 29 | N27: 0.46 | P27: 20 | Q27: 0.28 | S27: 69 | T27: 0.52 | V27: 24 | W27: 0.26 | Y27: 41 | Z27: 0.50 | AB27: 70 | AC27: 0.86 | AE27: 23 | AF27: 0.35 | AH27: 11 | AI27: 0.34 | AK27: 18 | AL27: 0.32 | AN27: 35 | AO27: 0.50
C28: 여 | D28: 344 | E28: 0.42 | G28: 9 | H28: 0.14 | J28: 9 | K28: 0.35 | M28: 27 | N28: 0.45 | P28: 22 | Q28: 0.30 | S28: 58 | T28: 0.43 | V28: 21 | W28: 0.25 | Y28: 47 | Z28: 0.60 | AB28: 62 | AC28: 0.80 | AE28: 28 | AF28: 0.49 | AH28: 14 | AI28: 0.53 | AK28: 25 | AL28: 0.39 | AN28: 22 | AO28: 0.29
B29: 6세 | C29: 계 | D29: 830 | E29: 0.50 | F29: 94.84 | G29: 44 | H29: 0.33 | I29: 120.00 | J29: 11 | K29: 0.21 | L29: 83.33 | M29: 52 | N29: 0.42 | O29: 85.71 | P29: 53 | Q29: 0.36 | R29: 165.00 | S29: 162 | T29: 0.61 | U29: 86.21 | V29: 63 | W29: 0.36 | X29: 85.29 | Y29: 73 | Z29: 0.45 | AA29: 82.50 | AB29: 151 | AC29: 0.95 | AD29: 118.84 | AE29: 45 | AF29: 0.36 | AG29: 104.55 | AH29: 26 | AI29: 0.44 | AJ29: 73.33 | AK29: 66 | AL29: 0.55 | AM29: 73.68 | AN29: 84 | AO29: 0.58 | AP29: 78.72
C30: 남 | D30: 404 | E30: 0.48 | G30: 24 | H30: 0.34 | J30: 5 | K30: 0.18 | M30: 24 | N30: 0.38 | P30: 33 | Q30: 0.46 | S30: 75 | T30: 0.57 | V30: 29 | W30: 0.31 | Y30: 33 | Z30: 0.40 | AB30: 82 | AC30: 1.01 | AE30: 23 | AF30: 0.35 | AH30: 11 | AI30: 0.34 | AK30: 28 | AL30: 0.50 | AN30: 37 | AO30: 0.53
C31: 여 | D31: 426 | E31: 0.52 | G31: 20 | H31: 0.31 | J31: 6 | K31: 0.24 | M31: 28 | N31: 0.46 | P31: 20 | Q31: 0.27 | S31: 87 | T31: 0.65 | V31: 34 | W31: 0.41 | Y31: 40 | Z31: 0.51 | AB31: 69 | AC31: 0.89 | AE31: 22 | AF31: 0.38 | AH31: 15 | AI31: 0.57 | AK31: 38 | AL31: 0.59 | AN31: 47 | AO31: 0.62
B32: 7세 | C32: 계 | D32: 819 | E32: 0.49 | F32: 96.88 | G32: 35 | H32: 0.26 | I32: 94.44 | J32: 16 | K32: 0.30 | L32: 77.78 | M32: 53 | N32: 0.43 | O32: 96.30 | P32: 56 | Q32: 0.38 | R32: 115.38 | S32: 199 | T32: 0.75 | U32: 99.00 | V32: 52 | W32: 0.30 | X32: 116.67 | Y32: 82 | Z32: 0.51 | AA32: 86.36 | AB32: 154 | AC32: 0.97 | AD32: 90.12 | AE32: 33 | AF32: 0.27 | AG32: 106.25 | AH32: 18 | AI32: 0.30 | AJ32: 157.14 | AK32: 49 | AL32: 0.41 | AM32: 113.04 | AN32: 72 | AO32: 0.49 | AP32: 75.61
C33: 남 | D33: 403 | E33: 0.48 | G33: 17 | H33: 0.24 | J33: 7 | K33: 0.25 | M33: 26 | N33: 0.42 | P33: 30 | Q33: 0.42 | S33: 99 | T33: 0.75 | V33: 28 | W33: 0.30 | Y33: 38 | Z33: 0.46 | AB33: 73 | AC33: 0.90 | AE33: 17 | AF33: 0.26 | AH33: 11 | AI33: 0.34 | AK33: 26 | AL33: 0.46 | AN33: 31 | AO33: 0.44
C34: 여 | D34: 416 | E34: 0.51 | G34: 18 | H34: 0.28 | J34: 9 | K34: 0.35 | M34: 27 | N34: 0.45 | P34: 26 | Q34: 0.35 | S34: 100 | T34: 0.74 | V34: 24 | W34: 0.29 | Y34: 44 | Z34: 0.57 | AB34: 81 | AC34: 1.05 | AE34: 16 | AF34: 0.28 | AH34: 7 | AI34: 0.26 | AK34: 23 | AL34: 0.36 | AN34: 41 | AO34: 0.54
B35: 8세 | C35: 계 | D35: 975 | E35: 0.58 | F35: 98.98 | G35: 40 | H35: 0.30 | I35: 73.91 | J35: 16 | K35: 0.30 | L35: 100.00 | M35: 53 | N35: 0.43 | O35: 82.76 | P35: 78 | Q35: 0.54 | R35: 77.27 | S35: 214 | T35: 0.80 | U35: 94.55 | V35: 73 | W35: 0.41 | X35: 87.18 | Y35: 81 | Z35: 0.50 | AA35: 118.92 | AB35: 181 | AC35: 1.14 | AD35: 123.46 | AE35: 60 | AF35: 0.48 | AG35: 140.00 | AH35: 28 | AI35: 0.47 | AJ35: 75.00 | AK35: 71 | AL35: 0.59 | AM35: 61.36 | AN35: 80 | AO35: 0.55 | AP35: 135.29
C36: 남 | D36: 485 | E36: 0.57 | G36: 17 | H36: 0.24 | J36: 8 | K36: 0.29 | M36: 24 | N36: 0.38 | P36: 34 | Q36: 0.47 | S36: 104 | T36: 0.79 | V36: 34 | W36: 0.37 | Y36: 44 | Z36: 0.53 | AB36: 100 | AC36: 1.24 | AE36: 35 | AF36: 0.53 | AH36: 12 | AI36: 0.37 | AK36: 27 | AL36: 0.48 | AN36: 46 | AO36: 0.65
C37: 여 | D37: 490 | E37: 0.60 | G37: 23 | H37: 0.36 | J37: 8 | K37: 0.31 | M37: 29 | N37: 0.48 | P37: 44 | Q37: 0.60 | S37: 110 | T37: 0.82 | V37: 39 | W37: 0.47 | Y37: 37 | Z37: 0.48 | AB37: 81 | AC37: 1.05 | AE37: 25 | AF37: 0.43 | AH37: 16 | AI37: 0.60 | AK37: 44 | AL37: 0.68 | AN37: 34 | AO37: 0.45
B38: 9세 | C38: 계 | D38: 1,042 | E38: 0.63 | F38: 93.68 | G38: 54 | H38: 0.41 | I38: 86.21 | J38: 20 | K38: 0.38 | L38: 185.71 | M38: 59 | N38: 0.48 | O38: 118.52 | P38: 80 | Q38: 0.55 | R38: 100.00 | S38: 220 | T38: 0.83 | U38: 94.69 | V38: 74 | W38: 0.42 | X38: 60.87 | Y38: 94 | Z38: 0.59 | AA38: 84.31 | AB38: 204 | AC38: 1.29 | AD38: 75.86 | AE38: 42 | AF38: 0.34 | AG38: 110.00 | AH38: 36 | AI38: 0.61 | AJ38: 157.14 | AK38: 70 | AL38: 0.58 | AM38: 133.33 | AN38: 89 | AO38: 0.61 | AP38: 97.78
C39: 남 | D39: 504 | E39: 0.60 | G39: 25 | H39: 0.36 | J39: 13 | K39: 0.47 | M39: 32 | N39: 0.51 | P39: 40 | Q39: 0.56 | S39: 107 | T39: 0.81 | V39: 28 | W39: 0.30 | Y39: 43 | Z39: 0.52 | AB39: 88 | AC39: 1.09 | AE39: 22 | AF39: 0.33 | AH39: 22 | AI39: 0.68 | AK39: 40 | AL39: 0.71 | AN39: 44 | AO39: 0.63
C40: 여 | D40: 538 | E40: 0.66 | G40: 29 | H40: 0.46 | J40: 7 | K40: 0.28 | M40: 27 | N40: 0.45 | P40: 40 | Q40: 0.54 | S40: 113 | T40: 0.84 | V40: 46 | W40: 0.55 | Y40: 51 | Z40: 0.66 | AB40: 116 | AC40: 1.50 | AE40: 20 | AF40: 0.35 | AH40: 14 | AI40: 0.53 | AK40: 30 | AL40: 0.47 | AN40: 45 | AO40: 0.60
B41: 10세 | C41: 계 | D41: 1,137 | E41: 0.68 | F41: 114.12 | G41: 66 | H41: 0.50 | I41: 106.25 | J41: 20 | K41: 0.38 | L41: 122.22 | M41: 53 | N41: 0.43 | O41: 89.29 | P41: 98 | Q41: 0.67 | R41: 117.78 | S41: 235 | T41: 0.88 | U41: 125.96 | V41: 89 | W41: 0.51 | X41: 122.50 | Y41: 99 | Z41: 0.62 | AA41: 76.79 | AB41: 216 | AC41: 1.36 | AD41: 145.45 | AE41: 56 | AF41: 0.45 | AG41: 107.41 | AH41: 34 | AI41: 0.58 | AJ41: 126.67 | AK41: 72 | AL41: 0.60 | AM41: 89.47 | AN41: 99 | AO41: 0.68 | AP41: 102.04
C42: 남 | D42: 606 | E42: 0.72 | G42: 34 | H42: 0.49 | J42: 11 | K42: 0.40 | M42: 25 | N42: 0.40 | P42: 53 | Q42: 0.74 | S42: 131 | T42: 0.99 | V42: 49 | W42: 0.53 | Y42: 43 | Z42: 0.52 | AB42: 128 | AC42: 1.58 | AE42: 29 | AF42: 0.44 | AH42: 19 | AI42: 0.58 | AK42: 34 | AL42: 0.60 | AN42: 50 | AO42: 0.71
C43: 여 | D43: 531 | E43: 0.65 | G43: 32 | H43: 0.50 | J43: 9 | K43: 0.35 | M43: 28 | N43: 0.46 | P43: 45 | Q43: 0.61 | S43: 104 | T43: 0.77 | V43: 40 | W43: 0.48 | Y43: 56 | Z43: 0.72 | AB43: 88 | AC43: 1.14 | AE43: 27 | AF43: 0.47 | AH43: 15 | AI43: 0.57 | AK43: 38 | AL43: 0.59 | AN43: 49 | AO43: 0.65
B44: 11세 | C44: 계 | D44: 1,197 | E44: 0.72 | F44: 114.52 | G44: 49 | H44: 0.37 | I44: 133.33 | J44: 24 | K44: 0.45 | L44: 200.00 | M44: 69 | N44: 0.56 | O44: 122.58 | P44: 96 | Q44: 0.66 | R44: 146.15 | S44: 273 | T44: 1.02 | U44: 89.58 | V44: 80 | W44: 0.45 | X44: 110.53 | Y44: 96 | Z44: 0.60 | AA44: 100.00 | AB44: 223 | AC44: 1.41 | AD44: 114.42 | AE44: 65 | AF44: 0.52 | AG44: 132.14 | AH44: 36 | AI44: 0.61 | AJ44: 200.00 | AK44: 79 | AL44: 0.65 | AM44: 97.50 | AN44: 107 | AO44: 0.73 | AP44: 137.78
C45: 남 | D45: 639 | E45: 0.75 | G45: 28 | H45: 0.40 | J45: 16 | K45: 0.57 | M45: 38 | N45: 0.61 | P45: 57 | Q45: 0.79 | S45: 129 | T45: 0.97 | V45: 42 | W45: 0.45 | Y45: 48 | Z45: 0.58 | AB45: 119 | AC45: 1.47 | AE45: 37 | AF45: 0.56 | AH45: 24 | AI45: 0.74 | AK45: 39 | AL45: 0.69 | AN45: 62 | AO45: 0.88
C46: 여 | D46: 558 | E46: 0.68 | G46: 21 | H46: 0.33 | J46: 8 | K46: 0.31 | M46: 31 | N46: 0.51 | P46: 39 | Q46: 0.53 | S46: 144 | T46: 1.07 | V46: 38 | W46: 0.45 | Y46: 48 | Z46: 0.62 | AB46: 104 | AC46: 1.34 | AE46: 28 | AF46: 0.49 | AH46: 12 | AI46: 0.45 | AK46: 40 | AL46: 0.62 | AN46: 45 | AO46: 0.60
B47: 12세 | C47: 계 | D47: 1,265 | E47: 0.76 | F47: 98.90 | G47: 74 | H47: 0.56 | I47: 72.09 | J47: 32 | K47: 0.60 | L47: 128.57 | M47: 72 | N47: 0.58 | O47: 84.62 | P47: 86 | Q47: 0.59 | R47: 79.17 | S47: 291 | T47: 1.09 | U47: 110.87 | V47: 103 | W47: 0.58 | X47: 123.91 | Y47: 102 | Z47: 0.64 | AA47: 117.02 | AB47: 210 | AC47: 1.33 | AD47: 100.00 | AE47: 71 | AF47: 0.57 | AG47: 77.50 | AH47: 50 | AI47: 0.85 | AJ47: 85.19 | AK47: 81 | AL47: 0.67 | AM47: 97.56 | AN47: 93 | AO47: 0.64 | AP47: 93.75
C48: 남 | D48: 629 | E48: 0.74 | G48: 31 | H48: 0.45 | J48: 18 | K48: 0.65 | M48: 33 | N48: 0.53 | P48: 38 | Q48: 0.53 | S48: 153 | T48: 1.16 | V48: 57 | W48: 0.62 | Y48: 55 | Z48: 0.67 | AB48: 105 | AC48: 1.30 | AE48: 31 | AF48: 0.47 | AH48: 23 | AI48: 0.71 | AK48: 40 | AL48: 0.71 | AN48: 45 | AO48: 0.64
C49: 여 | D49: 636 | E49: 0.78 | G49: 43 | H49: 0.68 | J49: 14 | K49: 0.55 | M49: 39 | N49: 0.64 | P49: 48 | Q49: 0.65 | S49: 138 | T49: 1.03 | V49: 46 | W49: 0.55 | Y49: 47 | Z49: 0.60 | AB49: 105 | AC49: 1.36 | AE49: 40 | AF49: 0.69 | AH49: 27 | AI49: 1.02 | AK49: 41 | AL49: 0.64 | AN49: 48 | AO49: 0.64
B50: 13세 | C50: 계 | D50: 1,332 | E50: 0.80 | F50: 112.10 | G50: 77 | H50: 0.58 | I50: 148.39 | J50: 35 | K50: 0.66 | L50: 94.44 | M50: 82 | N50: 0.67 | O50: 115.79 | P50: 110 | Q50: 0.76 | R50: 111.54 | S50: 307 | T50: 1.15 | U50: 103.31 | V50: 112 | W50: 0.64 | X50: 107.41 | Y50: 112 | Z50: 0.70 | AA50: 89.83 | AB50: 177 | AC50: 1.12 | AD50: 129.87 | AE50: 82 | AF50: 0.66 | AG50: 156.25 | AH50: 41 | AI50: 0.69 | AJ50: 70.83 | AK50: 82 | AL50: 0.68 | AM50: 115.79 | AN50: 115 | AO50: 0.79 | AP50: 112.96
C51: 남 | D51: 704 | E51: 0.83 | G51: 46 | H51: 0.66 | J51: 17 | K51: 0.61 | M51: 44 | N51: 0.70 | P51: 58 | Q51: 0.81 | S51: 156 | T51: 1.18 | V51: 58 | W51: 0.63 | Y51: 53 | Z51: 0.64 | AB51: 100 | AC51: 1.24 | AE51: 50 | AF51: 0.75 | AH51: 17 | AI51: 0.52 | AK51: 44 | AL51: 0.78 | AN51: 61 | AO51: 0.87
C52: 여 | D52: 628 | E52: 0.77 | G52: 31 | H52: 0.49 | J52: 18 | K52: 0.71 | M52: 38 | N52: 0.63 | P52: 52 | Q52: 0.71 | S52: 151 | T52: 1.12 | V52: 54 | W52: 0.65 | Y52: 59 | Z52: 0.76 | AB52: 77 | AC52: 0.99 | AE52: 32 | AF52: 0.55 | AH52: 24 | AI52: 0.90 | AK52: 38 | AL52: 0.59 | AN52: 54 | AO52: 0.72
B53: 14세 | C53: 계 | D53: 1,390 | E53: 0.83 | F53: 105.01 | G53: 93 | H53: 0.70 | I53: 165.71 | J53: 36 | K53: 0.68 | L53: 157.14 | M53: 79 | N53: 0.64 | O53: 139.39 | P53: 115 | Q53: 0.79 | R53: 88.52 | S53: 329 | T53: 1.23 | U53: 92.40 | V53: 112 | W53: 0.64 | X53: 103.64 | Y53: 105 | Z53: 0.65 | AA53: 101.92 | AB53: 202 | AC53: 1.28 | AD53: 102.00 | AE53: 95 | AF53: 0.76 | AG53: 102.13 | AH53: 51 | AI53: 0.86 | AJ53: 82.14 | AK53: 66 | AL53: 0.55 | AM53: 100.00 | AN53: 107 | AO53: 0.73 | AP53: 118.37
C54: 남 | D54: 712 | E54: 0.84 | G54: 58 | H54: 0.83 | J54: 22 | K54: 0.79 | M54: 46 | N54: 0.73 | P54: 54 | Q54: 0.75 | S54: 158 | T54: 1.19 | V54: 57 | W54: 0.62 | Y54: 53 | Z54: 0.64 | AB54: 102 | AC54: 1.26 | AE54: 48 | AF54: 0.72 | AH54: 23 | AI54: 0.71 | AK54: 33 | AL54: 0.59 | AN54: 58 | AO54: 0.82
C55: 여 | D55: 678 | E55: 0.83 | G55: 35 | H55: 0.55 | J55: 14 | K55: 0.55 | M55: 33 | N55: 0.55 | P55: 61 | Q55: 0.83 | S55: 171 | T55: 1.27 | V55: 55 | W55: 0.66 | Y55: 52 | Z55: 0.67 | AB55: 100 | AC55: 1.29 | AE55: 47 | AF55: 0.81 | AH55: 28 | AI55: 1.06 | AK55: 33 | AL55: 0.51 | AN55: 49 | AO55: 0.65
B56: 15세 | C56: 계 | D56: 1,372 | E56: 0.82 | F56: 112.71 | G56: 81 | H56: 0.61 | I56: 97.56 | J56: 40 | K56: 0.75 | L56: 110.53 | M56: 80 | N56: 0.65 | O56: 105.13 | P56: 135 | Q56: 0.93 | R56: 125.00 | S56: 314 | T56: 1.18 | U56: 119.58 | V56: 122 | W56: 0.69 | X56: 117.86 | Y56: 114 | Z56: 0.71 | AA56: 80.95 | AB56: 145 | AC56: 0.92 | AD56: 116.42 | AE56: 87 | AF56: 0.70 | AG56: 102.33 | AH56: 42 | AI56: 0.71 | AJ56: 100.00 | AK56: 90 | AL56: 0.75 | AM56: 125.00 | AN56: 122 | AO56: 0.84 | AP56: 130.19
C57: 남 | D57: 727 | E57: 0.86 | G57: 40 | H57: 0.57 | J57: 21 | K57: 0.75 | M57: 41 | N57: 0.65 | P57: 75 | Q57: 1.04 | S57: 171 | T57: 1.29 | V57: 66 | W57: 0.71 | Y57: 51 | Z57: 0.62 | AB57: 78 | AC57: 0.96 | AE57: 44 | AF57: 0.66 | AH57: 21 | AI57: 0.65 | AK57: 50 | AL57: 0.89 | AN57: 69 | AO57: 0.98
C58: 여 | D58: 645 | E58: 0.79 | G58: 41 | H58: 0.64 | J58: 19 | K58: 0.75 | M58: 39 | N58: 0.64 | P58: 60 | Q58: 0.81 | S58: 143 | T58: 1.06 | V58: 56 | W58: 0.67 | Y58: 63 | Z58: 0.81 | AB58: 67 | AC58: 0.86 | AE58: 43 | AF58: 0.75 | AH58: 21 | AI58: 0.79 | AK58: 40 | AL58: 0.62 | AN58: 53 | AO58: 0.70
B59: 16세 | C59: 계 | D59: 1,366 | E59: 0.82 | F59: 104.49 | G59: 88 | H59: 0.66 | I59: 125.64 | J59: 34 | K59: 0.64 | L59: 126.67 | M59: 93 | N59: 0.76 | O59: 126.83 | P59: 132 | Q59: 0.91 | R59: 116.39 | S59: 322 | T59: 1.21 | U59: 90.53 | V59: 121 | W59: 0.69 | X59: 120.00 | Y59: 95 | Z59: 0.59 | AA59: 93.88 | AB59: 147 | AC59: 0.93 | AD59: 122.73 | AE59: 81 | AF59: 0.65 | AG59: 88.37 | AH59: 57 | AI59: 0.97 | AJ59: 67.65 | AK59: 97 | AL59: 0.80 | AM59: 86.54 | AN59: 99 | AO59: 0.68 | AP59: 125.00
C60: 남 | D60: 698 | E60: 0.82 | G60: 49 | H60: 0.70 | J60: 19 | K60: 0.68 | M60: 52 | N60: 0.83 | P60: 71 | Q60: 0.99 | S60: 153 | T60: 1.16 | V60: 66 | W60: 0.71 | Y60: 46 | Z60: 0.56 | AB60: 81 | AC60: 1.00 | AE60: 38 | AF60: 0.57 | AH60: 23 | AI60: 0.71 | AK60: 45 | AL60: 0.80 | AN60: 55 | AO60: 0.78
C61: 여 | D61: 668 | E61: 0.81 | G61: 39 | H61: 0.61 | J61: 15 | K61: 0.59 | M61: 41 | N61: 0.68 | P61: 61 | Q61: 0.83 | S61: 169 | T61: 1.26 | V61: 55 | W61: 0.66 | Y61: 49 | Z61: 0.63 | AB61: 66 | AC61: 0.85 | AE61: 43 | AF61: 0.75 | AH61: 34 | AI61: 1.28 | AK61: 52 | AL61: 0.81 | AN61: 44 | AO61: 0.58
B62: 17세 | C62: 계 | D62: 1,511 | E62: 0.91 | F62: 103.91 | G62: 100 | H62: 0.75 | I62: 88.68 | J62: 52 | K62: 0.98 | L62: 136.36 | M62: 76 | N62: 0.62 | O62: 130.30 | P62: 163 | Q62: 1.12 | R62: 101.23 | S62: 335 | T62: 1.26 | U62: 89.27 | V62: 117 | W62: 0.66 | X62: 108.93 | Y62: 111 | Z62: 0.69 | AA62: 98.21 | AB62: 140 | AC62: 0.88 | AD62: 108.96 | AE62: 104 | AF62: 0.84 | AG62: 131.11 | AH62: 70 | AI62: 1.19 | AJ62: 125.81 | AK62: 112 | AL62: 0.93 | AM62: 107.41 | AN62: 131 | AO62: 0.90 | AP62: 98.48
C63: 남 | D63: 770 | E63: 0.91 | G63: 47 | H63: 0.67 | J63: 30 | K63: 1.08 | M63: 43 | N63: 0.69 | P63: 82 | Q63: 1.14 | S63: 158 | T63: 1.19 | V63: 61 | W63: 0.66 | Y63: 55 | Z63: 0.67 | AB63: 73 | AC63: 0.90 | AE63: 59 | AF63: 0.89 | AH63: 39 | AI63: 1.20 | AK63: 58 | AL63: 1.03 | AN63: 65 | AO63: 0.92
C64: 여 | D64: 741 | E64: 0.90 | G64: 53 | H64: 0.83 | J64: 22 | K64: 0.86 | M64: 33 | N64: 0.55 | P64: 81 | Q64: 1.10 | S64: 177 | T64: 1.32 | V64: 56 | W64: 0.67 | Y64: 56 | Z64: 0.72 | AB64: 67 | AC64: 0.86 | AE64: 45 | AF64: 0.78 | AH64: 31 | AI64: 1.17 | AK64: 54 | AL64: 0.84 | AN64: 66 | AO64: 0.88
B65: 18세 | C65: 계 | D65: 1,535 | E65: 0.92 | F65: 116.20 | G65: 121 | H65: 0.91 | I65: 152.08 | J65: 38 | K65: 0.71 | L65: 111.11 | M65: 85 | N65: 0.69 | O65: 97.67 | P65: 152 | Q65: 1.04 | R65: 141.27 | S65: 380 | T65: 1.43 | U65: 105.41 | V65: 138 | W65: 0.78 | X65: 109.09 | Y65: 126 | Z65: 0.79 | AA65: 215.00 | AB65: 126 | AC65: 0.80 | AD65: 96.88 | AE65: 93 | AF65: 0.75 | AG65: 97.87 | AH65: 44 | AI65: 0.75 | AJ65: 158.82 | AK65: 87 | AL65: 0.72 | AM65: 107.14 | AN65: 145 | AO65: 1.00 | AP65: 88.31
C66: 남 | D66: 825 | E66: 0.97 | G66: 73 | H66: 1.05 | J66: 20 | K66: 0.72 | M66: 42 | N66: 0.67 | P66: 89 | Q66: 1.24 | S66: 195 | T66: 1.47 | V66: 72 | W66: 0.78 | Y66: 86 | Z66: 1.04 | AB66: 62 | AC66: 0.77 | AE66: 46 | AF66: 0.69 | AH66: 27 | AI66: 0.83 | AK66: 45 | AL66: 0.80 | AN66: 68 | AO66: 0.97
C67: 여 | D67: 710 | E67: 0.87 | G67: 48 | H67: 0.75 | J67: 18 | K67: 0.71 | M67: 43 | N67: 0.71 | P67: 63 | Q67: 0.85 | S67: 185 | T67: 1.38 | V67: 66 | W67: 0.79 | Y67: 40 | Z67: 0.51 | AB67: 64 | AC67: 0.83 | AE67: 47 | AF67: 0.81 | AH67: 17 | AI67: 0.64 | AK67: 42 | AL67: 0.65 | AN67: 77 | AO67: 1.02
B68: 19세 | C68: 계 | D68: 1,467 | E68: 0.88 | F68: 115.10 | G68: 148 | H68: 1.11 | I68: 89.74 | J68: 24 | K68: 0.45 | L68: 166.67 | M68: 104 | N68: 0.84 | O68: 166.67 | P68: 138 | Q68: 0.95 | R68: 115.63 | S68: 327 | T68: 1.23 | U68: 109.62 | V68: 166 | W68: 0.94 | X68: 102.44 | Y68: 94 | Z68: 0.59 | AA68: 235.71 | AB68: 114 | AC68: 0.72 | AD68: 119.23 | AE68: 92 | AF68: 0.74 | AG68: 104.44 | AH68: 43 | AI68: 0.73 | AJ68: 86.96 | AK68: 100 | AL68: 0.83 | AM68: 108.33 | AN68: 117 | AO68: 0.80 | AP68: 101.72
C69: 남 | D69: 785 | E69: 0.93 | G69: 70 | H69: 1.00 | J69: 15 | K69: 0.54 | M69: 65 | N69: 1.04 | P69: 74 | Q69: 1.03 | S69: 171 | T69: 1.29 | V69: 84 | W69: 0.91 | Y69: 66 | Z69: 0.80 | AB69: 62 | AC69: 0.77 | AE69: 47 | AF69: 0.71 | AH69: 20 | AI69: 0.61 | AK69: 52 | AL69: 0.92 | AN69: 59 | AO69: 0.84
C70: 여 | D70: 682 | E70: 0.83 | G70: 78 | H70: 1.23 | J70: 9 | K70: 0.35 | M70: 39 | N70: 0.64 | P70: 64 | Q70: 0.87 | S70: 156 | T70: 1.16 | V70: 82 | W70: 0.98 | Y70: 28 | Z70: 0.36 | AB70: 52 | AC70: 0.67 | AE70: 45 | AF70: 0.78 | AH70: 23 | AI70: 0.87 | AK70: 48 | AL70: 0.75 | AN70: 58 | AO70: 0.77
B71: 20세 | C71: 계 | D71: 1,526 | E71: 0.92 | F71: 108.47 | G71: 172 | H71: 1.29 | I71: 52.21 | J71: 39 | K71: 0.73 | L71: 143.75 | M71: 93 | N71: 0.76 | O71: 106.67 | P71: 136 | Q71: 0.93 | R71: 102.99 | S71: 313 | T71: 1.17 | U71: 118.88 | V71: 145 | W71: 0.82 | X71: 130.16 | Y71: 125 | Z71: 0.78 | AA71: 131.48 | AB71: 120 | AC71: 0.76 | AD71: 135.29 | AE71: 100 | AF71: 0.80 | AG71: 122.22 | AH71: 43 | AI71: 0.73 | AJ71: 104.76 | AK71: 99 | AL71: 0.82 | AM71: 90.38 | AN71: 141 | AO71: 0.97 | AP71: 127.42
C72: 남 | D72: 794 | E72: 0.94 | G72: 59 | H72: 0.85 | J72: 23 | K72: 0.83 | M72: 48 | N72: 0.77 | P72: 69 | Q72: 0.96 | S72: 170 | T72: 1.28 | V72: 82 | W72: 0.89 | Y72: 71 | Z72: 0.86 | AB72: 69 | AC72: 0.85 | AE72: 55 | AF72: 0.83 | AH72: 22 | AI72: 0.68 | AK72: 47 | AL72: 0.83 | AN72: 79 | AO72: 1.12
C73: 여 | D73: 732 | E73: 0.89 | G73: 113 | H73: 1.78 | J73: 16 | K73: 0.63 | M73: 45 | N73: 0.74 | P73: 67 | Q73: 0.91 | S73: 143 | T73: 1.06 | V73: 63 | W73: 0.75 | Y73: 54 | Z73: 0.69 | AB73: 51 | AC73: 0.66 | AE73: 45 | AF73: 0.78 | AH73: 21 | AI73: 0.79 | AK73: 52 | AL73: 0.81 | AN73: 62 | AO73: 0.82
B74: 21세 | C74: 계 | D74: 1,700 | E74: 1.02 | F74: 121.35 | G74: 262 | H74: 1.97 | I74: 60.74 | J74: 38 | K74: 0.71 | L74: 216.67 | M74: 80 | N74: 0.65 | O74: 122.22 | P74: 162 | Q74: 1.11 | R74: 138.24 | S74: 346 | T74: 1.30 | U74: 152.55 | V74: 160 | W74: 0.91 | X74: 113.33 | Y74: 126 | Z74: 0.79 | AA74: 121.05 | AB74: 132 | AC74: 0.83 | AD74: 123.73 | AE74: 115 | AF74: 0.93 | AG74: 194.87 | AH74: 56 | AI74: 0.95 | AJ74: 100.00 | AK74: 87 | AL74: 0.72 | AM74: 112.20 | AN74: 136 | AO74: 0.93 | AP74: 156.60
C75: 남 | D75: 932 | E75: 1.10 | G75: 99 | H75: 1.42 | J75: 26 | K75: 0.93 | M75: 44 | N75: 0.70 | P75: 94 | Q75: 1.31 | S75: 209 | T75: 1.58 | V75: 85 | W75: 0.92 | Y75: 69 | Z75: 0.84 | AB75: 73 | AC75: 0.90 | AE75: 76 | AF75: 1.14 | AH75: 28 | AI75: 0.86 | AK75: 46 | AL75: 0.82 | AN75: 83 | AO75: 1.18
C76: 여 | D76: 768 | E76: 0.94 | G76: 163 | H76: 2.56 | J76: 12 | K76: 0.47 | M76: 36 | N76: 0.60 | P76: 68 | Q76: 0.92 | S76: 137 | T76: 1.02 | V76: 75 | W76: 0.90 | Y76: 57 | Z76: 0.73 | AB76: 59 | AC76: 0.76 | AE76: 39 | AF76: 0.68 | AH76: 28 | AI76: 1.06 | AK76: 41 | AL76: 0.64 | AN76: 53 | AO76: 0.70
B77: 22세 | C77: 계 | D77: 1,706 | E77: 1.02 | F77: 118.72 | G77: 268 | H77: 2.01 | I77: 103.03 | J77: 37 | K77: 0.69 | L77: 146.67 | M77: 83 | N77: 0.67 | O77: 124.32 | P77: 162 | Q77: 1.11 | R77: 121.92 | S77: 301 | T77: 1.13 | U77: 140.80 | V77: 209 | W77: 1.19 | X77: 134.83 | Y77: 128 | Z77: 0.80 | AA77: 109.84 | AB77: 114 | AC77: 0.72 | AD77: 96.55 | AE77: 145 | AF77: 1.17 | AG77: 126.56 | AH77: 41 | AI77: 0.69 | AJ77: 156.25 | AK77: 86 | AL77: 0.71 | AM77: 104.76 | AN77: 132 | AO77: 0.91 | AP77: 94.12
C78: 남 | D78: 926 | E78: 1.09 | G78: 136 | H78: 1.95 | J78: 22 | K78: 0.79 | M78: 46 | N78: 0.73 | P78: 89 | Q78: 1.24 | S78: 176 | T78: 1.33 | V78: 120 | W78: 1.30 | Y78: 67 | Z78: 0.81 | AB78: 56 | AC78: 0.69 | AE78: 81 | AF78: 1.22 | AH78: 25 | AI78: 0.77 | AK78: 44 | AL78: 0.78 | AN78: 64 | AO78: 0.91
C79: 여 | D79: 780 | E79: 0.95 | G79: 132 | H79: 2.07 | J79: 15 | K79: 0.59 | M79: 37 | N79: 0.61 | P79: 73 | Q79: 0.99 | S79: 125 | T79: 0.93 | V79: 89 | W79: 1.06 | Y79: 61 | Z79: 0.78 | AB79: 58 | AC79: 0.75 | AE79: 64 | AF79: 1.11 | AH79: 16 | AI79: 0.60 | AK79: 42 | AL79: 0.65 | AN79: 68 | AO79: 0.90
B80: 23세 | C80: 계 | D80: 1,824 | E80: 1.09 | F80: 118.44 | G80: 264 | H80: 1.98 | I80: 120.00 | J80: 39 | K80: 0.73 | L80: 143.75 | M80: 96 | N80: 0.78 | O80: 104.26 | P80: 173 | Q80: 1.19 | R80: 84.04 | S80: 318 | T80: 1.19 | U80: 113.42 | V80: 203 | W80: 1.15 | X80: 138.82 | Y80: 146 | Z80: 0.91 | AA80: 139.34 | AB80: 137 | AC80: 0.86 | AD80: 128.33 | AE80: 160 | AF80: 1.29 | AG80: 119.18 | AH80: 57 | AI80: 0.97 | AJ80: 128.00 | AK80: 93 | AL80: 0.77 | AM80: 97.87 | AN80: 138 | AO80: 0.95 | AP80: 137.93
C81: 남 | D81: 989 | E81: 1.17 | G81: 144 | H81: 2.07 | J81: 23 | K81: 0.83 | M81: 49 | N81: 0.78 | P81: 79 | Q81: 1.10 | S81: 169 | T81: 1.28 | V81: 118 | W81: 1.27 | Y81: 85 | Z81: 1.03 | AB81: 77 | AC81: 0.95 | AE81: 87 | AF81: 1.31 | AH81: 32 | AI81: 0.98 | AK81: 46 | AL81: 0.82 | AN81: 80 | AO81: 1.14
C82: 여 | D82: 835 | E82: 1.02 | G82: 120 | H82: 1.89 | J82: 16 | K82: 0.63 | M82: 47 | N82: 0.78 | P82: 94 | Q82: 1.27 | S82: 149 | T82: 1.11 | V82: 85 | W82: 1.02 | Y82: 61 | Z82: 0.78 | AB82: 60 | AC82: 0.77 | AE82: 73 | AF82: 1.27 | AH82: 25 | AI82: 0.94 | AK82: 47 | AL82: 0.73 | AN82: 58 | AO82: 0.77
B83: 24세 | C83: 계 | D83: 2,015 | E83: 1.21 | F83: 121.92 | G83: 221 | H83: 1.66 | I83: 179.75 | J83: 56 | K83: 1.05 | L83: 86.67 | M83: 108 | N83: 0.88 | O83: 111.76 | P83: 177 | Q83: 1.22 | R83: 103.45 | S83: 360 | T83: 1.35 | U83: 126.42 | V83: 251 | W83: 1.42 | X83: 126.13 | Y83: 182 | Z83: 1.13 | AA83: 91.58 | AB83: 122 | AC83: 0.77 | AD83: 148.98 | AE83: 149 | AF83: 1.20 | AG83: 122.39 | AH83: 76 | AI83: 1.29 | AJ83: 105.41 | AK83: 132 | AL83: 1.09 | AM83: 127.59 | AN83: 181 | AO83: 1.24 | AP83: 112.94
C84: 남 | D84: 1,107 | E84: 1.31 | G84: 142 | H84: 2.04 | J84: 26 | K84: 0.93 | M84: 57 | N84: 0.91 | P84: 90 | Q84: 1.25 | S84: 201 | T84: 1.52 | V84: 140 | W84: 1.51 | Y84: 87 | Z84: 1.05 | AB84: 73 | AC84: 0.90 | AE84: 82 | AF84: 1.23 | AH84: 39 | AI84: 1.20 | AK84: 74 | AL84: 1.31 | AN84: 96 | AO84: 1.36
C85: 여 | D85: 908 | E85: 1.11 | G85: 79 | H85: 1.24 | J85: 30 | K85: 1.18 | M85: 51 | N85: 0.84 | P85: 87 | Q85: 1.18 | S85: 159 | T85: 1.18 | V85: 111 | W85: 1.33 | Y85: 95 | Z85: 1.22 | AB85: 49 | AC85: 0.63 | AE85: 67 | AF85: 1.16 | AH85: 37 | AI85: 1.40 | AK85: 58 | AL85: 0.90 | AN85: 85 | AO85: 1.13
B86: 25세 | C86: 계 | D86: 2,027 | E86: 1.22 | F86: 124.47 | G86: 196 | H86: 1.47 | I86: 127.91 | J86: 55 | K86: 1.03 | L86: 150.00 | M86: 116 | N86: 0.94 | O86: 118.87 | P86: 163 | Q86: 1.12 | R86: 136.23 | S86: 344 | T86: 1.29 | U86: 102.35 | V86: 265 | W86: 1.50 | X86: 119.01 | Y86: 177 | Z86: 1.10 | AA86: 115.85 | AB86: 153 | AC86: 0.97 | AD86: 112.50 | AE86: 168 | AF86: 1.35 | AG86: 180.00 | AH86: 102 | AI86: 1.73 | AJ86: 121.74 | AK86: 118 | AL86: 0.98 | AM86: 107.02 | AN86: 170 | AO86: 1.17 | AP86: 161.54
C87: 남 | D87: 1,124 | E87: 1.33 | G87: 110 | H87: 1.58 | J87: 33 | K87: 1.19 | M87: 63 | N87: 1.01 | P87: 94 | Q87: 1.31 | S87: 174 | T87: 1.31 | V87: 144 | W87: 1.56 | Y87: 95 | Z87: 1.15 | AB87: 81 | AC87: 1.00 | AE87: 108 | AF87: 1.62 | AH87: 56 | AI87: 1.72 | AK87: 61 | AL87: 1.08 | AN87: 105 | AO87: 1.49
C88: 여 | D88: 903 | E88: 1.10 | G88: 86 | H88: 1.35 | J88: 22 | K88: 0.86 | M88: 53 | N88: 0.88 | P88: 69 | Q88: 0.94 | S88: 170 | T88: 1.27 | V88: 121 | W88: 1.45 | Y88: 82 | Z88: 1.05 | AB88: 72 | AC88: 0.93 | AE88: 60 | AF88: 1.04 | AH88: 46 | AI88: 1.73 | AK88: 57 | AL88: 0.89 | AN88: 65 | AO88: 0.86
B89: 26세 | C89: 계 | D89: 2,086 | E89: 1.25 | F89: 133.07 | G89: 153 | H89: 1.15 | I89: 173.21 | J89: 53 | K89: 0.99 | L89: 120.83 | M89: 123 | N89: 1.00 | O89: 141.18 | P89: 174 | Q89: 1.19 | R89: 141.67 | S89: 335 | T89: 1.26 | U89: 118.95 | V89: 249 | W89: 1.41 | X89: 107.50 | Y89: 198 | Z89: 1.23 | AA89: 157.14 | AB89: 176 | AC89: 1.11 | AD89: 114.63 | AE89: 211 | AF89: 1.70 | AG89: 134.44 | AH89: 117 | AI89: 1.98 | AJ89: 185.37 | AK89: 140 | AL89: 1.16 | AM89: 108.96 | AN89: 157 | AO89: 1.08 | AP89: 153.23
C90: 남 | D90: 1,191 | E90: 1.41 | G90: 97 | H90: 1.39 | J90: 29 | K90: 1.04 | M90: 72 | N90: 1.15 | P90: 102 | Q90: 1.42 | S90: 182 | T90: 1.38 | V90: 129 | W90: 1.39 | Y90: 121 | Z90: 1.46 | AB90: 94 | AC90: 1.16 | AE90: 121 | AF90: 1.82 | AH90: 76 | AI90: 2.34 | AK90: 73 | AL90: 1.30 | AN90: 95 | AO90: 1.35
C91: 여 | D91: 895 | E91: 1.09 | G91: 56 | H91: 0.88 | J91: 24 | K91: 0.94 | M91: 51 | N91: 0.84 | P91: 72 | Q91: 0.98 | S91: 153 | T91: 1.14 | V91: 120 | W91: 1.43 | Y91: 77 | Z91: 0.99 | AB91: 82 | AC91: 1.06 | AE91: 90 | AF91: 1.56 | AH91: 41 | AI91: 1.55 | AK91: 67 | AL91: 1.04 | AN91: 62 | AO91: 0.82
B92: 27세 | C92: 계 | D92: 2,089 | E92: 1.25 | F92: 122.23 | G92: 163 | H92: 1.22 | I92: 94.05 | J92: 51 | K92: 0.96 | L92: 82.14 | M92: 140 | N92: 1.14 | O92: 105.88 | P92: 160 | Q92: 1.10 | R92: 135.29 | S92: 308 | T92: 1.16 | U92: 109.52 | V92: 233 | W92: 1.32 | X92: 140.21 | Y92: 214 | Z92: 1.33 | AA92: 107.77 | AB92: 192 | AC92: 1.21 | AD92: 115.73 | AE92: 192 | AF92: 1.54 | AG92: 156.00 | AH92: 114 | AI92: 1.93 | AJ92: 123.53 | AK92: 155 | AL92: 1.28 | AM92: 115.28 | AN92: 167 | AO92: 1.15 | AP92: 187.93
C93: 남 | D93: 1,149 | E93: 1.36 | G93: 79 | H93: 1.13 | J93: 23 | K93: 0.83 | M93: 72 | N93: 1.15 | P93: 92 | Q93: 1.28 | S93: 161 | T93: 1.22 | V93: 136 | W93: 1.47 | Y93: 111 | Z93: 1.34 | AB93: 103 | AC93: 1.27 | AE93: 117 | AF93: 1.76 | AH93: 63 | AI93: 1.94 | AK93: 83 | AL93: 1.47 | AN93: 109 | AO93: 1.55
C94: 여 | D94: 940 | E94: 1.15 | G94: 84 | H94: 1.32 | J94: 28 | K94: 1.10 | M94: 68 | N94: 1.12 | P94: 68 | Q94: 0.92 | S94: 147 | T94: 1.09 | V94: 97 | W94: 1.16 | Y94: 103 | Z94: 1.32 | AB94: 89 | AC94: 1.15 | AE94: 75 | AF94: 1.30 | AH94: 51 | AI94: 1.92 | AK94: 72 | AL94: 1.12 | AN94: 58 | AO94: 0.77
B95: 28세 | C95: 계 | D95: 2,243 | E95: 1.35 | F95: 118.62 | G95: 164 | H95: 1.23 | I95: 130.99 | J95: 66 | K95: 1.24 | L95: 83.33 | M95: 142 | N95: 1.15 | O95: 115.15 | P95: 181 | Q95: 1.24 | R95: 105.68 | S95: 331 | T95: 1.24 | U95: 112.18 | V95: 289 | W95: 1.64 | X95: 124.03 | Y95: 254 | Z95: 1.58 | AA95: 130.91 | AB95: 190 | AC95: 1.20 | AD95: 128.92 | AE95: 199 | AF95: 1.60 | AG95: 148.75 | AH95: 111 | AI95: 1.88 | AJ95: 146.67 | AK95: 145 | AL95: 1.20 | AM95: 88.31 | AN95: 171 | AO95: 1.17 | AP95: 101.18
C96: 남 | D96: 1,217 | E96: 1.44 | G96: 93 | H96: 1.34 | J96: 30 | K96: 1.08 | M96: 76 | N96: 1.21 | P96: 93 | Q96: 1.29 | S96: 175 | T96: 1.32 | V96: 160 | W96: 1.73 | Y96: 144 | Z96: 1.74 | AB96: 107 | AC96: 1.32 | AE96: 119 | AF96: 1.79 | AH96: 66 | AI96: 2.03 | AK96: 68 | AL96: 1.21 | AN96: 86 | AO96: 1.22
C97: 여 | D97: 1,026 | E97: 1.25 | G97: 71 | H97: 1.12 | J97: 36 | K97: 1.42 | M97: 66 | N97: 1.09 | P97: 88 | Q97: 1.19 | S97: 156 | T97: 1.16 | V97: 129 | W97: 1.54 | Y97: 110 | Z97: 1.41 | AB97: 83 | AC97: 1.07 | AE97: 80 | AF97: 1.39 | AH97: 45 | AI97: 1.70 | AK97: 77 | AL97: 1.20 | AN97: 85 | AO97: 1.13
B98: 29세 | C98: 계 | D98: 2,263 | E98: 1.36 | F98: 121.65 | G98: 156 | H98: 1.17 | I98: 122.86 | J98: 65 | K98: 1.22 | L98: 132.14 | M98: 159 | N98: 1.29 | O98: 96.30 | P98: 200 | Q98: 1.37 | R98: 98.02 | S98: 334 | T98: 1.25 | U98: 130.34 | V98: 289 | W98: 1.64 | X98: 151.30 | Y98: 238 | Z98: 1.48 | AA98: 124.53 | AB98: 221 | AC98: 1.39 | AD98: 100.91 | AE98: 208 | AF98: 1.67 | AG98: 126.09 | AH98: 95 | AI98: 1.61 | AJ98: 206.45 | AK98: 140 | AL98: 1.16 | AM98: 102.90 | AN98: 158 | AO98: 1.08 | AP98: 116.44
C99: 남 | D99: 1,242 | E99: 1.47 | G99: 86 | H99: 1.23 | J99: 37 | K99: 1.33 | M99: 78 | N99: 1.25 | P99: 99 | Q99: 1.38 | S99: 189 | T99: 1.43 | V99: 174 | W99: 1.88 | Y99: 132 | Z99: 1.60 | AB99: 111 | AC99: 1.37 | AE99: 116 | AF99: 1.74 | AH99: 64 | AI99: 1.97 | AK99: 71 | AL99: 1.26 | AN99: 85 | AO99: 1.21
C100: 여 | D100: 1,021 | E100: 1.24 | G100: 70 | H100: 1.10 | J100: 28 | K100: 1.10 | M100: 81 | N100: 1.34 | P100: 101 | Q100: 1.37 | S100: 145 | T100: 1.08 | V100: 115 | W100: 1.37 | Y100: 106 | Z100: 1.36 | AB100: 110 | AC100: 1.42 | AE100: 92 | AF100: 1.60 | AH100: 31 | AI100: 1.17 | AK100: 69 | AL100: 1.07 | AN100: 73 | AO100: 0.97
B101: 30세 | C101: 계 | D101: 2,196 | E101: 1.32 | F101: 136.13 | G101: 147 | H101: 1.10 | I101: 153.45 | J101: 66 | K101: 1.24 | L101: 135.71 | M101: 148 | N101: 1.20 | O101: 111.43 | P101: 165 | Q101: 1.13 | R101: 153.85 | S101: 323 | T101: 1.21 | U101: 122.76 | V101: 270 | W101: 1.53 | X101: 136.84 | Y101: 267 | Z101: 1.66 | AA101: 154.29 | AB101: 223 | AC101: 1.41 | AD101: 125.25 | AE101: 206 | AF101: 1.66 | AG101: 171.05 | AH101: 97 | AI101: 1.64 | AJ101: 125.58 | AK101: 152 | AL101: 1.26 | AM101: 133.85 | AN101: 132 | AO101: 0.91 | AP101: 112.90
C102: 남 | D102: 1,266 | E102: 1.50 | G102: 89 | H102: 1.28 | J102: 38 | K102: 1.36 | M102: 78 | N102: 1.25 | P102: 100 | Q102: 1.39 | S102: 178 | T102: 1.35 | V102: 156 | W102: 1.69 | Y102: 162 | Z102: 1.96 | AB102: 124 | AC102: 1.53 | AE102: 130 | AF102: 1.95 | AH102: 54 | AI102: 1.66 | AK102: 87 | AL102: 1.55 | AN102: 70 | AO102: 0.99
C103: 여 | D103: 930 | E103: 1.13 | G103: 58 | H103: 0.91 | J103: 28 | K103: 1.10 | M103: 70 | N103: 1.16 | P103: 65 | Q103: 0.88 | S103: 145 | T103: 1.08 | V103: 114 | W103: 1.36 | Y103: 105 | Z103: 1.35 | AB103: 99 | AC103: 1.28 | AE103: 76 | AF103: 1.32 | AH103: 43 | AI103: 1.62 | AK103: 65 | AL103: 1.01 | AN103: 62 | AO103: 0.82
B104: 31세 | C104: 계 | D104: 2,171 | E104: 1.30 | F104: 120.85 | G104: 165 | H104: 1.24 | I104: 120.00 | J104: 38 | K104: 0.71 | L104: 111.11 | M104: 157 | N104: 1.28 | O104: 134.33 | P104: 157 | Q104: 1.08 | R104: 137.88 | S104: 298 | T104: 1.12 | U104: 108.39 | V104: 254 | W104: 1.44 | X104: 151.49 | Y104: 259 | Z104: 1.61 | AA104: 112.30 | AB104: 243 | AC104: 1.53 | AD104: 94.40 | AE104: 195 | AF104: 1.57 | AG104: 156.58 | AH104: 111 | AI104: 1.88 | AJ104: 141.30 | AK104: 159 | AL104: 1.32 | AM104: 103.85 | AN104: 135 | AO104: 0.93 | AP104: 104.55
C105: 남 | D105: 1,188 | E105: 1.40 | G105: 90 | H105: 1.29 | J105: 20 | K105: 0.72 | M105: 90 | N105: 1.44 | P105: 91 | Q105: 1.27 | S105: 155 | T105: 1.17 | V105: 153 | W105: 1.65 | Y105: 137 | Z105: 1.66 | AB105: 118 | AC105: 1.46 | AE105: 119 | AF105: 1.79 | AH105: 65 | AI105: 2.00 | AK105: 81 | AL105: 1.44 | AN105: 69 | AO105: 0.98
C106: 여 | D106: 983 | E106: 1.20 | G106: 75 | H106: 1.18 | J106: 18 | K106: 0.71 | M106: 67 | N106: 1.11 | P106: 66 | Q106: 0.89 | S106: 143 | T106: 1.06 | V106: 101 | W106: 1.21 | Y106: 122 | Z106: 1.57 | AB106: 125 | AC106: 1.61 | AE106: 76 | AF106: 1.32 | AH106: 46 | AI106: 1.73 | AK106: 78 | AL106: 1.21 | AN106: 66 | AO106: 0.88
B107: 32세 | C107: 계 | D107: 2,185 | E107: 1.31 | F107: 126.66 | G107: 149 | H107: 1.12 | I107: 129.23 | J107: 57 | K107: 1.07 | L107: 128.00 | M107: 184 | N107: 1.49 | O107: 135.90 | P107: 159 | Q107: 1.09 | R107: 133.82 | S107: 304 | T107: 1.14 | U107: 106.80 | V107: 214 | W107: 1.21 | X107: 140.45 | Y107: 290 | Z107: 1.81 | AA107: 107.14 | AB107: 227 | AC107: 1.43 | AD107: 110.19 | AE107: 187 | AF107: 1.50 | AG107: 187.69 | AH107: 91 | AI107: 1.54 | AJ107: 167.65 | AK107: 159 | AL107: 1.32 | AM107: 114.86 | AN107: 164 | AO107: 1.13 | AP107: 130.99
C108: 남 | D108: 1,221 | E108: 1.44 | G108: 84 | H108: 1.21 | J108: 32 | K108: 1.15 | M108: 106 | N108: 1.69 | P108: 91 | Q108: 1.27 | S108: 157 | T108: 1.19 | V108: 125 | W108: 1.35 | Y108: 150 | Z108: 1.82 | AB108: 119 | AC108: 1.47 | AE108: 122 | AF108: 1.83 | AH108: 57 | AI108: 1.75 | AK108: 85 | AL108: 1.51 | AN108: 93 | AO108: 1.32
C109: 여 | D109: 964 | E109: 1.17 | G109: 65 | H109: 1.02 | J109: 25 | K109: 0.98 | M109: 78 | N109: 1.29 | P109: 68 | Q109: 0.92 | S109: 147 | T109: 1.09 | V109: 89 | W109: 1.06 | Y109: 140 | Z109: 1.80 | AB109: 108 | AC109: 1.39 | AE109: 65 | AF109: 1.13 | AH109: 34 | AI109: 1.28 | AK109: 74 | AL109: 1.15 | AN109: 71 | AO109: 0.94
B110: 33세 | C110: 계 | D110: 2,185 | E110: 1.31 | F110: 130.97 | G110: 153 | H110: 1.15 | I110: 168.42 | J110: 70 | K110: 1.31 | L110: 169.23 | M110: 156 | N110: 1.27 | O110: 140.00 | P110: 140 | Q110: 0.96 | R110: 191.67 | S110: 318 | T110: 1.19 | U110: 101.27 | V110: 226 | W110: 1.28 | X110: 153.93 | Y110: 288 | Z110: 1.79 | AA110: 144.07 | AB110: 257 | AC110: 1.62 | AD110: 93.23 | AE110: 183 | AF110: 1.47 | AG110: 177.27 | AH110: 84 | AI110: 1.42 | AJ110: 200.00 | AK110: 172 | AL110: 1.42 | AM110: 82.98 | AN110: 138 | AO110: 0.95 | AP110: 115.63
C111: 남 | D111: 1,239 | E111: 1.46 | G111: 96 | H111: 1.38 | J111: 44 | K111: 1.58 | M111: 91 | N111: 1.45 | P111: 92 | Q111: 1.28 | S111: 160 | T111: 1.21 | V111: 137 | W111: 1.48 | Y111: 170 | Z111: 2.06 | AB111: 124 | AC111: 1.53 | AE111: 117 | AF111: 1.76 | AH111: 56 | AI111: 1.72 | AK111: 78 | AL111: 1.39 | AN111: 74 | AO111: 1.05
C112: 여 | D112: 946 | E112: 1.15 | G112: 57 | H112: 0.90 | J112: 26 | K112: 1.02 | M112: 65 | N112: 1.07 | P112: 48 | Q112: 0.65 | S112: 158 | T112: 1.18 | V112: 89 | W112: 1.06 | Y112: 118 | Z112: 1.52 | AB112: 133 | AC112: 1.72 | AE112: 66 | AF112: 1.14 | AH112: 28 | AI112: 1.06 | AK112: 94 | AL112: 1.46 | AN112: 64 | AO112: 0.85
B113: 34세 | C113: 계 | D113: 1,942 | E113: 1.17 | F113: 131.19 | G113: 115 | H113: 0.86 | I113: 150.00 | J113: 56 | K113: 1.05 | L113: 229.41 | M113: 146 | N113: 1.19 | O113: 139.34 | P113: 134 | Q113: 0.92 | R113: 127.12 | S113: 290 | T113: 1.09 | U113: 95.95 | V113: 192 | W113: 1.09 | X113: 186.57 | Y113: 272 | Z113: 1.69 | AA113: 114.17 | AB113: 241 | AC113: 1.52 | AD113: 111.40 | AE113: 146 | AF113: 1.17 | AG113: 204.17 | AH113: 84 | AI113: 1.42 | AJ113: 250.00 | AK113: 136 | AL113: 1.13 | AM113: 115.87 | AN113: 130 | AO113: 0.89 | AP113: 96.97
C114: 남 | D114: 1,102 | E114: 1.30 | G114: 69 | H114: 0.99 | J114: 39 | K114: 1.40 | M114: 85 | N114: 1.36 | P114: 75 | Q114: 1.04 | S114: 142 | T114: 1.07 | V114: 125 | W114: 1.35 | Y114: 145 | Z114: 1.76 | AB114: 127 | AC114: 1.57 | AE114: 98 | AF114: 1.47 | AH114: 60 | AI114: 1.84 | AK114: 73 | AL114: 1.30 | AN114: 64 | AO114: 0.91
C115: 여 | D115: 840 | E115: 1.02 | G115: 46 | H115: 0.72 | J115: 17 | K115: 0.67 | M115: 61 | N115: 1.01 | P115: 59 | Q115: 0.80 | S115: 148 | T115: 1.10 | V115: 67 | W115: 0.80 | Y115: 127 | Z115: 1.63 | AB115: 114 | AC115: 1.47 | AE115: 48 | AF115: 0.83 | AH115: 24 | AI115: 0.90 | AK115: 63 | AL115: 0.98 | AN115: 66 | AO115: 0.88
B116: 35세 | C116: 계 | D116: 1,852 | E116: 1.11 | F116: 137.44 | G116: 110 | H116: 0.83 | I116: 168.29 | J116: 60 | K116: 1.13 | L116: 233.33 | M116: 139 | N116: 1.13 | O116: 148.21 | P116: 118 | Q116: 0.81 | R116: 122.64 | S116: 263 | T116: 0.99 | U116: 122.88 | V116: 163 | W116: 0.92 | X116: 171.67 | Y116: 244 | Z116: 1.52 | AA116: 125.93 | AB116: 248 | AC116: 1.57 | AD116: 93.75 | AE116: 138 | AF116: 1.11 | AG116: 200.00 | AH116: 110 | AI116: 1.86 | AJ116: 223.53 | AK116: 130 | AL116: 1.08 | AM116: 103.13 | AN116: 129 | AO116: 0.89 | AP116: 138.89
C117: 남 | D117: 1,072 | E117: 1.27 | G117: 69 | H117: 0.99 | J117: 42 | K117: 1.51 | M117: 83 | N117: 1.33 | P117: 65 | Q117: 0.90 | S117: 145 | T117: 1.10 | V117: 103 | W117: 1.11 | Y117: 136 | Z117: 1.65 | AB117: 120 | AC117: 1.48 | AE117: 92 | AF117: 1.38 | AH117: 76 | AI117: 2.34 | AK117: 66 | AL117: 1.17 | AN117: 75 | AO117: 1.07
C118: 여 | D118: 780 | E118: 0.95 | G118: 41 | H118: 0.64 | J118: 18 | K118: 0.71 | M118: 56 | N118: 0.93 | P118: 53 | Q118: 0.72 | S118: 118 | T118: 0.88 | V118: 60 | W118: 0.72 | Y118: 108 | Z118: 1.39 | AB118: 128 | AC118: 1.65 | AE118: 46 | AF118: 0.80 | AH118: 34 | AI118: 1.28 | AK118: 64 | AL118: 0.99 | AN118: 54 | AO118: 0.72
B119: 36세 | C119: 계 | D119: 1,771 | E119: 1.06 | F119: 136.13 | G119: 112 | H119: 0.84 | I119: 124.00 | J119: 54 | K119: 1.01 | L119: 116.00 | M119: 131 | N119: 1.06 | O119: 142.59 | P119: 123 | Q119: 0.84 | R119: 108.47 | S119: 248 | T119: 0.93 | U119: 119.47 | V119: 177 | W119: 1.00 | X119: 164.18 | Y119: 239 | Z119: 1.49 | AA119: 148.96 | AB119: 209 | AC119: 1.32 | AD119: 145.88 | AE119: 139 | AF119: 1.12 | AG119: 152.73 | AH119: 81 | AI119: 1.37 | AJ119: 211.54 | AK119: 128 | AL119: 1.06 | AM119: 128.57 | AN119: 130 | AO119: 0.89 | AP119: 103.13
C120: 남 | D120: 1,021 | E120: 1.21 | G120: 62 | H120: 0.89 | J120: 29 | K120: 1.04 | M120: 77 | N120: 1.23 | P120: 64 | Q120: 0.89 | S120: 135 | T120: 1.02 | V120: 110 | W120: 1.19 | Y120: 143 | Z120: 1.73 | AB120: 124 | AC120: 1.53 | AE120: 84 | AF120: 1.26 | AH120: 55 | AI120: 1.69 | AK120: 72 | AL120: 1.28 | AN120: 66 | AO120: 0.94
C121: 여 | D121: 750 | E121: 0.91 | G121: 50 | H121: 0.79 | J121: 25 | K121: 0.98 | M121: 54 | N121: 0.89 | P121: 59 | Q121: 0.80 | S121: 113 | T121: 0.84 | V121: 67 | W121: 0.80 | Y121: 96 | Z121: 1.23 | AB121: 85 | AC121: 1.10 | AE121: 55 | AF121: 0.95 | AH121: 26 | AI121: 0.98 | AK121: 56 | AL121: 0.87 | AN121: 64 | AO121: 0.85
B122: 37세 | C122: 계 | D122: 1,728 | E122: 1.04 | F122: 123.83 | G122: 117 | H122: 0.88 | I122: 105.26 | J122: 60 | K122: 1.13 | L122: 122.22 | M122: 126 | N122: 1.02 | O122: 125.00 | P122: 104 | Q122: 0.71 | R122: 103.92 | S122: 276 | T122: 1.04 | U122: 112.31 | V122: 166 | W122: 0.94 | X122: 130.56 | Y122: 191 | Z122: 1.19 | AA122: 148.05 | AB122: 250 | AC122: 1.58 | AD122: 110.08 | AE122: 130 | AF122: 1.05 | AG122: 165.31 | AH122: 77 | AI122: 1.30 | AJ122: 196.15 | AK122: 129 | AL122: 1.07 | AM122: 130.36 | AN122: 102 | AO122: 0.70 | AP122: 96.15
C123: 남 | D123: 956 | E123: 1.13 | G123: 60 | H123: 0.86 | J123: 33 | K123: 1.19 | M123: 70 | N123: 1.12 | P123: 53 | Q123: 0.74 | S123: 146 | T123: 1.10 | V123: 94 | W123: 1.02 | Y123: 114 | Z123: 1.38 | AB123: 131 | AC123: 1.62 | AE123: 81 | AF123: 1.22 | AH123: 51 | AI123: 1.57 | AK123: 73 | AL123: 1.30 | AN123: 50 | AO123: 0.71
C124: 여 | D124: 772 | E124: 0.94 | G124: 57 | H124: 0.90 | J124: 27 | K124: 1.06 | M124: 56 | N124: 0.93 | P124: 51 | Q124: 0.69 | S124: 130 | T124: 0.97 | V124: 72 | W124: 0.86 | Y124: 77 | Z124: 0.99 | AB124: 119 | AC124: 1.54 | AE124: 49 | AF124: 0.85 | AH124: 26 | AI124: 0.98 | AK124: 56 | AL124: 0.87 | AN124: 52 | AO124: 0.69
B125: 38세 | C125: 계 | D125: 1,748 | E125: 1.05 | F125: 127.31 | G125: 126 | H125: 0.95 | I125: 162.50 | J125: 39 | K125: 0.73 | L125: 143.75 | M125: 139 | N125: 1.13 | O125: 98.57 | P125: 95 | Q125: 0.65 | R125: 143.59 | S125: 274 | T125: 1.03 | U125: 120.97 | V125: 168 | W125: 0.95 | X125: 162.50 | Y125: 211 | Z125: 1.31 | AA125: 129.35 | AB125: 253 | AC125: 1.60 | AD125: 114.41 | AE125: 120 | AF125: 0.97 | AG125: 140.00 | AH125: 70 | AI125: 1.19 | AJ125: 191.67 | AK125: 129 | AL125: 1.07 | AM125: 111.48 | AN125: 124 | AO125: 0.85 | AP125: 96.83
C126: 남 | D126: 979 | E126: 1.16 | G126: 78 | H126: 1.12 | J126: 23 | K126: 0.83 | M126: 69 | N126: 1.10 | P126: 56 | Q126: 0.78 | S126: 150 | T126: 1.13 | V126: 104 | W126: 1.12 | Y126: 119 | Z126: 1.44 | AB126: 135 | AC126: 1.67 | AE126: 70 | AF126: 1.05 | AH126: 46 | AI126: 1.41 | AK126: 68 | AL126: 1.21 | AN126: 61 | AO126: 0.87
C127: 여 | D127: 769 | E127: 0.94 | G127: 48 | H127: 0.75 | J127: 16 | K127: 0.63 | M127: 70 | N127: 1.16 | P127: 39 | Q127: 0.53 | S127: 124 | T127: 0.92 | V127: 64 | W127: 0.77 | Y127: 92 | Z127: 1.18 | AB127: 118 | AC127: 1.52 | AE127: 50 | AF127: 0.87 | AH127: 24 | AI127: 0.90 | AK127: 61 | AL127: 0.95 | AN127: 63 | AO127: 0.84
B128: 39세 | C128: 계 | D128: 1,744 | E128: 1.05 | F128: 119.37 | G128: 122 | H128: 0.92 | I128: 154.17 | J128: 57 | K128: 1.07 | L128: 72.73 | M128: 108 | N128: 0.88 | O128: 170.00 | P128: 112 | Q128: 0.77 | R128: 115.38 | S128: 248 | T128: 0.93 | U128: 108.40 | V128: 173 | W128: 0.98 | X128: 143.66 | Y128: 200 | Z128: 1.25 | AA128: 104.08 | AB128: 280 | AC128: 1.77 | AD128: 93.10 | AE128: 123 | AF128: 0.99 | AG128: 127.78 | AH128: 74 | AI128: 1.25 | AJ128: 124.24 | AK128: 136 | AL128: 1.13 | AM128: 112.50 | AN128: 111 | AO128: 0.76 | AP128: 192.11
C129: 남 | D129: 949 | E129: 1.12 | G129: 74 | H129: 1.06 | J129: 24 | K129: 0.86 | M129: 68 | N129: 1.09 | P129: 60 | Q129: 0.83 | S129: 129 | T129: 0.97 | V129: 102 | W129: 1.10 | Y129: 102 | Z129: 1.23 | AB129: 135 | AC129: 1.67 | AE129: 69 | AF129: 1.04 | AH129: 41 | AI129: 1.26 | AK129: 72 | AL129: 1.28 | AN129: 73 | AO129: 1.04
C130: 여 | D130: 795 | E130: 0.97 | G130: 48 | H130: 0.75 | J130: 33 | K130: 1.30 | M130: 40 | N130: 0.66 | P130: 52 | Q130: 0.71 | S130: 119 | T130: 0.89 | V130: 71 | W130: 0.85 | Y130: 98 | Z130: 1.26 | AB130: 145 | AC130: 1.87 | AE130: 54 | AF130: 0.94 | AH130: 33 | AI130: 1.24 | AK130: 64 | AL130: 0.99 | AN130: 38 | AO130: 0.50
B131: 40세 | C131: 계 | D131: 1,709 | E131: 1.03 | F131: 121.95 | G131: 114 | H131: 0.86 | I131: 165.12 | J131: 54 | K131: 1.01 | L131: 92.86 | M131: 125 | N131: 1.02 | O131: 119.30 | P131: 102 | Q131: 0.70 | R131: 161.54 | S131: 279 | T131: 1.05 | U131: 114.62 | V131: 132 | W131: 0.75 | X131: 116.39 | Y131: 200 | Z131: 1.25 | AA131: 135.29 | AB131: 266 | AC131: 1.68 | AD131: 104.62 | AE131: 115 | AF131: 0.93 | AG131: 155.56 | AH131: 75 | AI131: 1.27 | AJ131: 200.00 | AK131: 122 | AL131: 1.01 | AM131: 103.33 | AN131: 125 | AO131: 0.86 | AP131: 86.57
C132: 남 | D132: 939 | E132: 1.11 | G132: 71 | H132: 1.02 | J132: 26 | K132: 0.93 | M132: 68 | N132: 1.09 | P132: 63 | Q132: 0.88 | S132: 149 | T132: 1.13 | V132: 71 | W132: 0.77 | Y132: 115 | Z132: 1.39 | AB132: 136 | AC132: 1.68 | AE132: 70 | AF132: 1.05 | AH132: 50 | AI132: 1.54 | AK132: 62 | AL132: 1.10 | AN132: 58 | AO132: 0.82
C133: 여 | D133: 770 | E133: 0.94 | G133: 43 | H133: 0.68 | J133: 28 | K133: 1.10 | M133: 57 | N133: 0.94 | P133: 39 | Q133: 0.53 | S133: 130 | T133: 0.97 | V133: 61 | W133: 0.73 | Y133: 85 | Z133: 1.09 | AB133: 130 | AC133: 1.68 | AE133: 45 | AF133: 0.78 | AH133: 25 | AI133: 0.94 | AK133: 60 | AL133: 0.93 | AN133: 67 | AO133: 0.89
B134: 41세 | C134: 계 | D134: 1,828 | E134: 1.10 | F134: 114.55 | G134: 100 | H134: 0.75 | I134: 112.77 | J134: 55 | K134: 1.03 | L134: 71.88 | M134: 127 | N134: 1.03 | O134: 126.79 | P134: 124 | Q134: 0.85 | R134: 110.17 | S134: 317 | T134: 1.19 | U134: 105.84 | V134: 150 | W134: 0.85 | X134: 134.38 | Y134: 184 | Z134: 1.15 | AA134: 142.11 | AB134: 279 | AC134: 1.76 | AD134: 92.41 | AE134: 123 | AF134: 0.99 | AG134: 141.18 | AH134: 106 | AI134: 1.80 | AJ134: 165.00 | AK134: 128 | AL134: 1.06 | AM134: 113.33 | AN134: 135 | AO134: 0.93 | AP134: 98.53
C135: 남 | D135: 976 | E135: 1.15 | G135: 53 | H135: 0.76 | J135: 23 | K135: 0.83 | M135: 71 | N135: 1.13 | P135: 65 | Q135: 0.90 | S135: 163 | T135: 1.23 | V135: 86 | W135: 0.93 | Y135: 108 | Z135: 1.31 | AB135: 134 | AC135: 1.66 | AE135: 72 | AF135: 1.08 | AH135: 66 | AI135: 2.03 | AK135: 68 | AL135: 1.21 | AN135: 67 | AO135: 0.95
C136: 여 | D136: 852 | E136: 1.04 | G136: 47 | H136: 0.74 | J136: 32 | K136: 1.26 | M136: 56 | N136: 0.93 | P136: 59 | Q136: 0.80 | S136: 154 | T136: 1.15 | V136: 64 | W136: 0.77 | Y136: 76 | Z136: 0.98 | AB136: 145 | AC136: 1.87 | AE136: 51 | AF136: 0.88 | AH136: 40 | AI136: 1.51 | AK136: 60 | AL136: 0.93 | AN136: 68 | AO136: 0.90
B137: 42세 | C137: 계 | D137: 2,060 | E137: 1.24 | F137: 116.16 | G137: 122 | H137: 0.92 | I137: 171.11 | J137: 78 | K137: 1.46 | L137: 105.26 | M137: 136 | N137: 1.10 | O137: 134.48 | P137: 153 | Q137: 1.05 | R137: 112.50 | S137: 364 | T137: 1.37 | U137: 86.67 | V137: 220 | W137: 1.25 | X137: 129.17 | Y137: 197 | Z137: 1.23 | AA137: 140.24 | AB137: 301 | AC137: 1.90 | AD137: 111.97 | AE137: 127 | AF137: 1.02 | AG137: 122.81 | AH137: 77 | AI137: 1.30 | AJ137: 140.63 | AK137: 125 | AL137: 1.04 | AM137: 115.52 | AN137: 160 | AO137: 1.10 | AP137: 105.13
C138: 남 | D138: 1,107 | E138: 1.31 | G138: 77 | H138: 1.11 | J138: 40 | K138: 1.44 | M138: 78 | N138: 1.25 | P138: 81 | Q138: 1.13 | S138: 169 | T138: 1.28 | V138: 124 | W138: 1.34 | Y138: 115 | Z138: 1.39 | AB138: 159 | AC138: 1.96 | AE138: 70 | AF138: 1.05 | AH138: 45 | AI138: 1.38 | AK138: 67 | AL138: 1.19 | AN138: 82 | AO138: 1.17
C139: 여 | D139: 953 | E139: 1.16 | G139: 45 | H139: 0.71 | J139: 38 | K139: 1.49 | M139: 58 | N139: 0.96 | P139: 72 | Q139: 0.98 | S139: 195 | T139: 1.45 | V139: 96 | W139: 1.15 | Y139: 82 | Z139: 1.05 | AB139: 142 | AC139: 1.83 | AE139: 57 | AF139: 0.99 | AH139: 32 | AI139: 1.21 | AK139: 58 | AL139: 0.90 | AN139: 78 | AO139: 1.04
B140: 43세 | C140: 계 | D140: 2,272 | E140: 1.36 | F140: 108.63 | G140: 140 | H140: 1.05 | I140: 133.33 | J140: 88 | K140: 1.65 | L140: 100.00 | M140: 158 | N140: 1.28 | O140: 105.19 | P140: 160 | Q140: 1.10 | R140: 100.00 | S140: 394 | T140: 1.48 | U140: 94.09 | V140: 217 | W140: 1.23 | X140: 99.08 | Y140: 213 | Z140: 1.33 | AA140: 97.22 | AB140: 322 | AC140: 2.03 | AD140: 122.07 | AE140: 153 | AF140: 1.23 | AG140: 150.82 | AH140: 88 | AI140: 1.49 | AJ140: 166.67 | AK140: 156 | AL140: 1.29 | AM140: 110.81 | AN140: 183 | AO140: 1.26 | AP140: 92.63
C141: 남 | D141: 1,183 | E141: 1.40 | G141: 80 | H141: 1.15 | J141: 44 | K141: 1.58 | M141: 81 | N141: 1.29 | P141: 80 | Q141: 1.11 | S141: 191 | T141: 1.44 | V141: 108 | W141: 1.17 | Y141: 105 | Z141: 1.27 | AB141: 177 | AC141: 2.19 | AE141: 92 | AF141: 1.38 | AH141: 55 | AI141: 1.69 | AK141: 82 | AL141: 1.46 | AN141: 88 | AO141: 1.25
C142: 여 | D142: 1,089 | E142: 1.33 | G142: 60 | H142: 0.94 | J142: 44 | K142: 1.73 | M142: 77 | N142: 1.27 | P142: 80 | Q142: 1.08 | S142: 203 | T142: 1.51 | V142: 109 | W142: 1.30 | Y142: 108 | Z142: 1.39 | AB142: 145 | AC142: 1.87 | AE142: 61 | AF142: 1.06 | AH142: 33 | AI142: 1.24 | AK142: 74 | AL142: 1.15 | AN142: 95 | AO142: 1.26
B143: 44세 | C143: 계 | D143: 2,348 | E143: 1.41 | F143: 112.49 | G143: 142 | H143: 1.07 | I143: 129.03 | J143: 84 | K143: 1.58 | L143: 180.00 | M143: 163 | N143: 1.32 | O143: 103.75 | P143: 189 | Q143: 1.30 | R143: 90.91 | S143: 439 | T143: 1.65 | U143: 93.39 | V143: 242 | W143: 1.37 | X143: 149.48 | Y143: 204 | Z143: 1.27 | AA143: 142.86 | AB143: 283 | AC143: 1.79 | AD143: 124.60 | AE143: 166 | AF143: 1.34 | AG143: 95.29 | AH143: 104 | AI143: 1.76 | AJ143: 131.11 | AK143: 164 | AL143: 1.36 | AM143: 88.51 | AN143: 168 | AO143: 1.15 | AP143: 102.41
C144: 남 | D144: 1,243 | E144: 1.47 | G144: 80 | H144: 1.15 | J144: 54 | K144: 1.94 | M144: 83 | N144: 1.33 | P144: 90 | Q144: 1.25 | S144: 212 | T144: 1.60 | V144: 145 | W144: 1.57 | Y144: 120 | Z144: 1.45 | AB144: 157 | AC144: 1.94 | AE144: 81 | AF144: 1.22 | AH144: 59 | AI144: 1.81 | AK144: 77 | AL144: 1.37 | AN144: 85 | AO144: 1.21
C145: 여 | D145: 1,105 | E145: 1.35 | G145: 62 | H145: 0.97 | J145: 30 | K145: 1.18 | M145: 80 | N145: 1.32 | P145: 99 | Q145: 1.34 | S145: 227 | T145: 1.69 | V145: 97 | W145: 1.16 | Y145: 84 | Z145: 1.08 | AB145: 126 | AC145: 1.63 | AE145: 85 | AF145: 1.47 | AH145: 45 | AI145: 1.70 | AK145: 87 | AL145: 1.35 | AN145: 83 | AO145: 1.10
B146: 45세 | C146: 계 | D146: 2,289 | E146: 1.37 | F146: 109.81 | G146: 163 | H146: 1.22 | I146: 129.58 | J146: 85 | K146: 1.60 | L146: 129.73 | M146: 146 | N146: 1.19 | O146: 102.78 | P146: 194 | Q146: 1.33 | R146: 104.21 | S146: 390 | T146: 1.46 | U146: 93.07 | V146: 228 | W146: 1.29 | X146: 135.05 | Y146: 190 | Z146: 1.18 | AA146: 134.57 | AB146: 330 | AC146: 2.08 | AD146: 114.29 | AE146: 149 | AF146: 1.20 | AG146: 106.94 | AH146: 102 | AI146: 1.73 | AJ146: 104.00 | AK146: 164 | AL146: 1.36 | AM146: 107.59 | AN146: 148 | AO146: 1.02 | AP146: 82.72
C147: 남 | D147: 1,198 | E147: 1.42 | G147: 92 | H147: 1.32 | J147: 48 | K147: 1.72 | M147: 74 | N147: 1.18 | P147: 99 | Q147: 1.38 | S147: 188 | T147: 1.42 | V147: 131 | W147: 1.42 | Y147: 109 | Z147: 1.32 | AB147: 176 | AC147: 2.17 | AE147: 77 | AF147: 1.16 | AH147: 52 | AI147: 1.60 | AK147: 85 | AL147: 1.51 | AN147: 67 | AO147: 0.95
C148: 여 | D148: 1,091 | E148: 1.33 | G148: 71 | H148: 1.12 | J148: 37 | K148: 1.45 | M148: 72 | N148: 1.19 | P148: 95 | Q148: 1.29 | S148: 202 | T148: 1.50 | V148: 97 | W148: 1.16 | Y148: 81 | Z148: 1.04 | AB148: 154 | AC148: 1.99 | AE148: 72 | AF148: 1.25 | AH148: 50 | AI148: 1.89 | AK148: 79 | AL148: 1.23 | AN148: 81 | AO148: 1.08
B149: 46세 | C149: 계 | D149: 2,229 | E149: 1.34 | F149: 109.10 | G149: 167 | H149: 1.25 | I149: 114.10 | J149: 72 | K149: 1.35 | L149: 148.28 | M149: 112 | N149: 0.91 | O149: 138.30 | P149: 204 | Q149: 1.40 | R149: 101.98 | S149: 409 | T149: 1.53 | U149: 89.35 | V149: 247 | W149: 1.40 | X149: 104.13 | Y149: 179 | Z149: 1.12 | AA149: 113.10 | AB149: 248 | AC149: 1.57 | AD149: 140.78 | AE149: 146 | AF149: 1.17 | AG149: 89.61 | AH149: 100 | AI149: 1.69 | AJ149: 138.10 | AK149: 156 | AL149: 1.29 | AM149: 105.26 | AN149: 189 | AO149: 1.30 | AP149: 105.43
C150: 남 | D150: 1,163 | E150: 1.37 | G150: 89 | H150: 1.28 | J150: 43 | K150: 1.54 | M150: 65 | N150: 1.04 | P150: 103 | Q150: 1.43 | S150: 193 | T150: 1.46 | V150: 126 | W150: 1.36 | Y150: 95 | Z150: 1.15 | AB150: 145 | AC150: 1.79 | AE150: 69 | AF150: 1.04 | AH150: 58 | AI150: 1.78 | AK150: 80 | AL150: 1.42 | AN150: 97 | AO150: 1.38
C151: 여 | D151: 1,066 | E151: 1.30 | G151: 78 | H151: 1.23 | J151: 29 | K151: 1.14 | M151: 47 | N151: 0.78 | P151: 101 | Q151: 1.37 | S151: 216 | T151: 1.61 | V151: 121 | W151: 1.45 | Y151: 84 | Z151: 1.08 | AB151: 103 | AC151: 1.33 | AE151: 77 | AF151: 1.34 | AH151: 42 | AI151: 1.58 | AK151: 76 | AL151: 1.18 | AN151: 92 | AO151: 1.22
B152: 47세 | C152: 계 | D152: 2,261 | E152: 1.36 | F152: 104.99 | G152: 143 | H152: 1.07 | I152: 134.43 | J152: 65 | K152: 1.22 | L152: 182.61 | M152: 154 | N152: 1.25 | O152: 120.00 | P152: 204 | Q152: 1.40 | R152: 106.06 | S152: 451 | T152: 1.69 | U152: 76.17 | V152: 247 | W152: 1.40 | X152: 124.55 | Y152: 204 | Z152: 1.27 | AA152: 88.89 | AB152: 245 | AC152: 1.55 | AD152: 109.40 | AE152: 172 | AF152: 1.38 | AG152: 112.35 | AH152: 96 | AI152: 1.63 | AJ152: 123.26 | AK152: 129 | AL152: 1.07 | AM152: 130.36 | AN152: 151 | AO152: 1.04 | AP152: 91.14
C153: 남 | D153: 1,158 | E153: 1.37 | G153: 82 | H153: 1.18 | J153: 42 | K153: 1.51 | M153: 84 | N153: 1.34 | P153: 105 | Q153: 1.46 | S153: 195 | T153: 1.47 | V153: 137 | W153: 1.48 | Y153: 96 | Z153: 1.16 | AB153: 128 | AC153: 1.58 | AE153: 91 | AF153: 1.37 | AH153: 53 | AI153: 1.63 | AK153: 73 | AL153: 1.30 | AN153: 72 | AO153: 1.02
C154: 여 | D154: 1,103 | E154: 1.34 | G154: 61 | H154: 0.96 | J154: 23 | K154: 0.90 | M154: 70 | N154: 1.16 | P154: 99 | Q154: 1.34 | S154: 256 | T154: 1.91 | V154: 110 | W154: 1.31 | Y154: 108 | Z154: 1.39 | AB154: 117 | AC154: 1.51 | AE154: 81 | AF154: 1.40 | AH154: 43 | AI154: 1.62 | AK154: 56 | AL154: 0.87 | AN154: 79 | AO154: 1.05
B155: 48세 | C155: 계 | D155: 2,337 | E155: 1.40 | F155: 102.69 | G155: 176 | H155: 1.32 | I155: 141.10 | J155: 70 | K155: 1.31 | L155: 112.12 | M155: 153 | N155: 1.24 | O155: 155.00 | P155: 203 | Q155: 1.39 | R155: 89.72 | S155: 413 | T155: 1.55 | U155: 86.88 | V155: 239 | W155: 1.36 | X155: 129.81 | Y155: 208 | Z155: 1.30 | AA155: 108.00 | AB155: 267 | AC155: 1.69 | AD155: 128.21 | AE155: 172 | AF155: 1.38 | AG155: 100.00 | AH155: 101 | AI155: 1.71 | AJ155: 114.89 | AK155: 146 | AL155: 1.21 | AM155: 55.32 | AN155: 189 | AO155: 1.30 | AP155: 70.27
C156: 남 | D156: 1,184 | E156: 1.40 | G156: 103 | H156: 1.48 | J156: 37 | K156: 1.33 | M156: 93 | N156: 1.48 | P156: 96 | Q156: 1.33 | S156: 192 | T156: 1.45 | V156: 135 | W156: 1.46 | Y156: 108 | Z156: 1.31 | AB156: 150 | AC156: 1.85 | AE156: 86 | AF156: 1.29 | AH156: 54 | AI156: 1.66 | AK156: 52 | AL156: 0.92 | AN156: 78 | AO156: 1.11
C157: 여 | D157: 1,153 | E157: 1.41 | G157: 73 | H157: 1.15 | J157: 33 | K157: 1.30 | M157: 60 | N157: 0.99 | P157: 107 | Q157: 1.45 | S157: 221 | T157: 1.65 | V157: 104 | W157: 1.24 | Y157: 100 | Z157: 1.28 | AB157: 117 | AC157: 1.51 | AE157: 86 | AF157: 1.49 | AH157: 47 | AI157: 1.77 | AK157: 94 | AL157: 1.46 | AN157: 111 | AO157: 1.47
B158: 49세 | C158: 계 | D158: 2,407 | E158: 1.44 | F158: 99.25 | G158: 167 | H158: 1.25 | I158: 122.67 | J158: 68 | K158: 1.28 | L158: 100.00 | M158: 155 | N158: 1.26 | O158: 101.30 | P158: 228 | Q158: 1.57 | R158: 115.09 | S158: 454 | T158: 1.70 | U158: 78.04 | V158: 264 | W158: 1.50 | X158: 118.18 | Y158: 238 | Z158: 1.48 | AA158: 77.61 | AB158: 211 | AC158: 1.33 | AD158: 102.88 | AE158: 183 | AF158: 1.47 | AG158: 92.63 | AH158: 91 | AI158: 1.54 | AJ158: 145.95 | AK158: 141 | AL158: 1.17 | AM158: 101.43 | AN158: 207 | AO158: 1.42 | AP158: 107.00
C159: 남 | D159: 1,199 | E159: 1.42 | G159: 92 | H159: 1.32 | J159: 34 | K159: 1.22 | M159: 78 | N159: 1.25 | P159: 122 | Q159: 1.70 | S159: 199 | T159: 1.50 | V159: 143 | W159: 1.54 | Y159: 104 | Z159: 1.26 | AB159: 107 | AC159: 1.32 | AE159: 88 | AF159: 1.32 | AH159: 54 | AI159: 1.66 | AK159: 71 | AL159: 1.26 | AN159: 107 | AO159: 1.52
C160: 여 | D160: 1,208 | E160: 1.47 | G160: 75 | H160: 1.18 | J160: 34 | K160: 1.34 | M160: 77 | N160: 1.27 | P160: 106 | Q160: 1.44 | S160: 255 | T160: 1.90 | V160: 121 | W160: 1.45 | Y160: 134 | Z160: 1.72 | AB160: 104 | AC160: 1.34 | AE160: 95 | AF160: 1.65 | AH160: 37 | AI160: 1.40 | AK160: 70 | AL160: 1.09 | AN160: 100 | AO160: 1.33
B161: 50세 | C161: 계 | D161: 2,622 | E161: 1.57 | F161: 103.10 | G161: 181 | H161: 1.36 | I161: 118.07 | J161: 84 | K161: 1.58 | L161: 121.05 | M161: 177 | N161: 1.44 | O161: 98.88 | P161: 211 | Q161: 1.45 | R161: 93.58 | S161: 495 | T161: 1.86 | U161: 78.70 | V161: 297 | W161: 1.69 | X161: 116.79 | Y161: 251 | Z161: 1.56 | AA161: 107.44 | AB161: 232 | AC161: 1.46 | AD161: 134.34 | AE161: 212 | AF161: 1.71 | AG161: 125.53 | AH161: 96 | AI161: 1.63 | AJ161: 152.63 | AK161: 171 | AL161: 1.42 | AM161: 101.18 | AN161: 215 | AO161: 1.48 | AP161: 77.69
C162: 남 | D162: 1,331 | E162: 1.57 | G162: 98 | H162: 1.41 | J162: 46 | K162: 1.65 | M162: 88 | N162: 1.41 | P162: 102 | Q162: 1.42 | S162: 218 | T162: 1.65 | V162: 160 | W162: 1.73 | Y162: 130 | Z162: 1.57 | AB162: 133 | AC162: 1.64 | AE162: 118 | AF162: 1.77 | AH162: 58 | AI162: 1.78 | AK162: 86 | AL162: 1.53 | AN162: 94 | AO162: 1.34
C163: 여 | D163: 1,291 | E163: 1.57 | G163: 83 | H163: 1.30 | J163: 38 | K163: 1.49 | M163: 89 | N163: 1.47 | P163: 109 | Q163: 1.48 | S163: 277 | T163: 2.06 | V163: 137 | W163: 1.64 | Y163: 121 | Z163: 1.55 | AB163: 99 | AC163: 1.28 | AE163: 94 | AF163: 1.63 | AH163: 38 | AI163: 1.43 | AK163: 85 | AL163: 1.32 | AN163: 121 | AO163: 1.61
B164: 51세 | C164: 계 | D164: 3,039 | E164: 1.82 | F164: 105.20 | G164: 195 | H164: 1.46 | I164: 146.84 | J164: 92 | K164: 1.73 | L164: 142.11 | M164: 222 | N164: 1.80 | O164: 107.48 | P164: 306 | Q164: 2.10 | R164: 93.67 | S164: 548 | T164: 2.06 | U164: 90.28 | V164: 340 | W164: 1.93 | X164: 122.22 | Y164: 265 | Z164: 1.65 | AA164: 134.51 | AB164: 251 | AC164: 1.58 | AD164: 83.21 | AE164: 225 | AF164: 1.81 | AG164: 147.25 | AH164: 117 | AI164: 1.98 | AJ164: 143.75 | AK164: 202 | AL164: 1.67 | AM164: 98.04 | AN164: 276 | AO164: 1.89 | AP164: 65.27
C165: 남 | D165: 1,558 | E165: 1.84 | G165: 116 | H165: 1.67 | J165: 54 | K165: 1.94 | M165: 115 | N165: 1.84 | P165: 148 | Q165: 2.06 | S165: 260 | T165: 1.96 | V165: 187 | W165: 2.02 | Y165: 152 | Z165: 1.84 | AB165: 114 | AC165: 1.41 | AE165: 134 | AF165: 2.01 | AH165: 69 | AI165: 2.12 | AK165: 100 | AL165: 1.78 | AN165: 109 | AO165: 1.55
C166: 여 | D166: 1,481 | E166: 1.80 | G166: 79 | H166: 1.24 | J166: 38 | K166: 1.49 | M166: 107 | N166: 1.77 | P166: 158 | Q166: 2.14 | S166: 288 | T166: 2.14 | V166: 153 | W166: 1.83 | Y166: 113 | Z166: 1.45 | AB166: 137 | AC166: 1.77 | AE166: 91 | AF166: 1.58 | AH166: 48 | AI166: 1.81 | AK166: 102 | AL166: 1.58 | AN166: 167 | AO166: 2.22
B167: 52세 | C167: 계 | D167: 3,158 | E167: 1.89 | F167: 99.62 | G167: 222 | H167: 1.67 | I167: 146.67 | J167: 109 | K167: 2.05 | L167: 122.45 | M167: 219 | N167: 1.78 | O167: 104.67 | P167: 318 | Q167: 2.18 | R167: 81.71 | S167: 599 | T167: 2.25 | U167: 82.62 | V167: 334 | W167: 1.90 | X167: 122.67 | Y167: 276 | Z167: 1.72 | AA167: 104.44 | AB167: 278 | AC167: 1.75 | AD167: 97.16 | AE167: 254 | AF167: 2.04 | AG167: 130.91 | AH167: 104 | AI167: 1.76 | AJ167: 136.36 | AK167: 188 | AL167: 1.56 | AM167: 80.77 | AN167: 257 | AO167: 1.76 | AP167: 72.48
C168: 남 | D168: 1,576 | E168: 1.86 | G168: 132 | H168: 1.89 | J168: 60 | K168: 2.16 | M168: 112 | N168: 1.79 | P168: 143 | Q168: 1.99 | S168: 271 | T168: 2.05 | V168: 184 | W168: 1.99 | Y168: 141 | Z168: 1.71 | AB168: 137 | AC168: 1.69 | AE168: 144 | AF168: 2.16 | AH168: 60 | AI168: 1.84 | AK168: 84 | AL168: 1.49 | AN168: 108 | AO168: 1.53
C169: 여 | D169: 1,582 | E169: 1.93 | G169: 90 | H169: 1.41 | J169: 49 | K169: 1.93 | M169: 107 | N169: 1.77 | P169: 175 | Q169: 2.37 | S169: 328 | T169: 2.44 | V169: 150 | W169: 1.79 | Y169: 135 | Z169: 1.73 | AB169: 141 | AC169: 1.82 | AE169: 110 | AF169: 1.91 | AH169: 44 | AI169: 1.66 | AK169: 104 | AL169: 1.61 | AN169: 149 | AO169: 1.98
B170: 53세 | C170: 계 | D170: 3,038 | E170: 1.82 | F170: 101.06 | G170: 195 | H170: 1.46 | I170: 126.74 | J170: 116 | K170: 2.18 | L170: 152.17 | M170: 225 | N170: 1.83 | O170: 100.89 | P170: 279 | Q170: 1.92 | R170: 89.80 | S170: 607 | T170: 2.28 | U170: 85.06 | V170: 333 | W170: 1.89 | X170: 122.00 | Y170: 255 | Z170: 1.59 | AA170: 123.68 | AB170: 228 | AC170: 1.44 | AD170: 83.87 | AE170: 235 | AF170: 1.89 | AG170: 139.80 | AH170: 113 | AI170: 1.91 | AJ170: 130.61 | AK170: 183 | AL170: 1.52 | AM170: 79.41 | AN170: 269 | AO170: 1.85 | AP170: 73.55
C171: 남 | D171: 1,527 | E171: 1.80 | G171: 109 | H171: 1.56 | J171: 70 | K171: 2.51 | M171: 113 | N171: 1.80 | P171: 132 | Q171: 1.84 | S171: 279 | T171: 2.11 | V171: 183 | W171: 1.98 | Y171: 141 | Z171: 1.71 | AB171: 104 | AC171: 1.28 | AE171: 137 | AF171: 2.06 | AH171: 64 | AI171: 1.97 | AK171: 81 | AL171: 1.44 | AN171: 114 | AO171: 1.62
C172: 여 | D172: 1,511 | E172: 1.84 | G172: 86 | H172: 1.35 | J172: 46 | K172: 1.81 | M172: 112 | N172: 1.85 | P172: 147 | Q172: 1.99 | S172: 328 | T172: 2.44 | V172: 150 | W172: 1.79 | Y172: 114 | Z172: 1.46 | AB172: 124 | AC172: 1.60 | AE172: 98 | AF172: 1.70 | AH172: 49 | AI172: 1.85 | AK172: 102 | AL172: 1.58 | AN172: 155 | AO172: 2.06
B173: 54세 | C173: 계 | D173: 3,451 | E173: 2.07 | F173: 100.52 | G173: 219 | H173: 1.64 | I173: 121.21 | J173: 103 | K173: 1.93 | L173: 123.91 | M173: 233 | N173: 1.89 | O173: 109.91 | P173: 327 | Q173: 2.24 | R173: 90.12 | S173: 623 | T173: 2.34 | U173: 81.10 | V173: 391 | W173: 2.22 | X173: 117.22 | Y173: 332 | Z173: 2.07 | AA173: 98.80 | AB173: 262 | AC173: 1.65 | AD173: 98.48 | AE173: 255 | AF173: 2.05 | AG173: 147.57 | AH173: 135 | AI173: 2.29 | AJ173: 110.94 | AK173: 253 | AL173: 2.10 | AM173: 72.11 | AN173: 318 | AO173: 2.18 | AP173: 103.85
C174: 남 | D174: 1,730 | E174: 2.04 | G174: 120 | H174: 1.72 | J174: 57 | K174: 2.05 | M174: 122 | N174: 1.95 | P174: 155 | Q174: 2.16 | S174: 279 | T174: 2.11 | V174: 211 | W174: 2.28 | Y174: 165 | Z174: 2.00 | AB174: 130 | AC174: 1.61 | AE174: 152 | AF174: 2.28 | AH174: 71 | AI174: 2.18 | AK174: 106 | AL174: 1.88 | AN174: 162 | AO174: 2.30
C175: 여 | D175: 1,721 | E175: 2.10 | G175: 99 | H175: 1.56 | J175: 46 | K175: 1.81 | M175: 111 | N175: 1.84 | P175: 172 | Q175: 2.33 | S175: 344 | T175: 2.56 | V175: 180 | W175: 2.15 | Y175: 167 | Z175: 2.14 | AB175: 132 | AC175: 1.70 | AE175: 103 | AF175: 1.79 | AH175: 64 | AI175: 2.41 | AK175: 147 | AL175: 2.28 | AN175: 156 | AO175: 2.07
B176: 55세 | C176: 계 | D176: 3,387 | E176: 2.03 | F176: 104.41 | G176: 225 | H176: 1.69 | I176: 136.84 | J176: 110 | K176: 2.06 | L176: 150.00 | M176: 227 | N176: 1.84 | O176: 114.15 | P176: 342 | Q176: 2.35 | R176: 111.11 | S176: 646 | T176: 2.42 | U176: 108.39 | V176: 334 | W176: 1.90 | X176: 110.06 | Y176: 298 | Z176: 1.86 | AA176: 97.35 | AB176: 264 | AC176: 1.67 | AD176: 88.57 | AE176: 272 | AF176: 2.19 | AG176: 91.55 | AH176: 126 | AI176: 2.13 | AJ176: 137.74 | AK176: 253 | AL176: 2.10 | AM176: 68.67 | AN176: 290 | AO176: 1.99 | AP176: 100.00
C177: 남 | D177: 1,730 | E177: 2.04 | G177: 130 | H177: 1.87 | J177: 66 | K177: 2.37 | M177: 121 | N177: 1.93 | P177: 180 | Q177: 2.50 | S177: 336 | T177: 2.54 | V177: 175 | W177: 1.89 | Y177: 147 | Z177: 1.78 | AB177: 124 | AC177: 1.53 | AE177: 130 | AF177: 1.95 | AH177: 73 | AI177: 2.24 | AK177: 103 | AL177: 1.83 | AN177: 145 | AO177: 2.06
C178: 여 | D178: 1,657 | E178: 2.02 | G178: 95 | H178: 1.49 | J178: 44 | K178: 1.73 | M178: 106 | N178: 1.75 | P178: 162 | Q178: 2.20 | S178: 310 | T178: 2.31 | V178: 159 | W178: 1.90 | Y178: 151 | Z178: 1.94 | AB178: 140 | AC178: 1.81 | AE178: 142 | AF178: 2.46 | AH178: 53 | AI178: 2.00 | AK178: 150 | AL178: 2.33 | AN178: 145 | AO178: 1.93
B179: 56세 | C179: 계 | D179: 3,758 | E179: 2.25 | F179: 102.15 | G179: 299 | H179: 2.24 | I179: 133.59 | J179: 114 | K179: 2.14 | L179: 137.50 | M179: 272 | N179: 2.21 | O179: 100.00 | P179: 347 | Q179: 2.38 | R179: 93.85 | S179: 650 | T179: 2.44 | U179: 86.78 | V179: 419 | W179: 2.38 | X179: 117.10 | Y179: 349 | Z179: 2.17 | AA179: 104.09 | AB179: 283 | AC179: 1.79 | AD179: 108.09 | AE179: 303 | AF179: 2.44 | AG179: 113.38 | AH179: 114 | AI179: 1.93 | AJ179: 153.33 | AK179: 261 | AL179: 2.16 | AM179: 65.19 | AN179: 347 | AO179: 2.38 | AP179: 98.29
C180: 남 | D180: 1,899 | E180: 2.24 | G180: 171 | H180: 2.45 | J180: 66 | K180: 2.37 | M180: 136 | N180: 2.17 | P180: 168 | Q180: 2.34 | S180: 302 | T180: 2.28 | V180: 226 | W180: 2.44 | Y180: 178 | Z180: 2.15 | AB180: 147 | AC180: 1.82 | AE180: 161 | AF180: 2.42 | AH180: 69 | AI180: 2.12 | AK180: 103 | AL180: 1.83 | AN180: 172 | AO180: 2.44
C181: 여 | D181: 1,859 | E181: 2.27 | G181: 128 | H181: 2.01 | J181: 48 | K181: 1.89 | M181: 136 | N181: 2.25 | P181: 179 | Q181: 2.43 | S181: 348 | T181: 2.59 | V181: 193 | W181: 2.31 | Y181: 171 | Z181: 2.20 | AB181: 136 | AC181: 1.76 | AE181: 142 | AF181: 2.46 | AH181: 45 | AI181: 1.70 | AK181: 158 | AL181: 2.45 | AN181: 175 | AO181: 2.32
B182: 57세 | C182: 계 | D182: 3,479 | E182: 2.09 | F182: 102.74 | G182: 261 | H182: 1.96 | I182: 103.91 | J182: 104 | K182: 1.95 | L182: 141.86 | M182: 277 | N182: 2.25 | O182: 78.71 | P182: 324 | Q182: 2.22 | R182: 107.69 | S182: 581 | T182: 2.18 | U182: 106.76 | V182: 328 | W182: 1.86 | X182: 141.18 | Y182: 327 | Z182: 2.04 | AA182: 120.95 | AB182: 266 | AC182: 1.68 | AD182: 100.00 | AE182: 266 | AF182: 2.14 | AG182: 91.37 | AH182: 112 | AI182: 1.90 | AJ182: 103.64 | AK182: 275 | AL182: 2.28 | AM182: 84.56 | AN182: 358 | AO182: 2.46 | AP182: 85.49
C183: 남 | D183: 1,763 | E183: 2.08 | G183: 133 | H183: 1.91 | J183: 61 | K183: 2.19 | M183: 122 | N183: 1.95 | P183: 168 | Q183: 2.34 | S183: 300 | T183: 2.27 | V183: 192 | W183: 2.07 | Y183: 179 | Z183: 2.17 | AB183: 133 | AC183: 1.64 | AE183: 127 | AF183: 1.91 | AH183: 57 | AI183: 1.75 | AK183: 126 | AL183: 2.24 | AN183: 165 | AO183: 2.34
C184: 여 | D184: 1,716 | E184: 2.09 | G184: 128 | H184: 2.01 | J184: 43 | K184: 1.69 | M184: 155 | N184: 2.56 | P184: 156 | Q184: 2.12 | S184: 281 | T184: 2.09 | V184: 136 | W184: 1.63 | Y184: 148 | Z184: 1.90 | AB184: 133 | AC184: 1.72 | AE184: 139 | AF184: 2.41 | AH184: 55 | AI184: 2.07 | AK184: 149 | AL184: 2.31 | AN184: 193 | AO184: 2.56
B185: 58세 | C185: 계 | D185: 3,202 | E185: 1.92 | F185: 102.27 | G185: 234 | H185: 1.76 | I185: 136.36 | J185: 98 | K185: 1.84 | L185: 100.00 | M185: 233 | N185: 1.89 | O185: 104.39 | P185: 294 | Q185: 2.02 | R185: 98.65 | S185: 544 | T185: 2.04 | U185: 107.63 | V185: 348 | W185: 1.97 | X185: 96.61 | Y185: 321 | Z185: 2.00 | AA185: 82.39 | AB185: 266 | AC185: 1.68 | AD185: 100.00 | AE185: 232 | AF185: 1.87 | AG185: 139.18 | AH185: 98 | AI185: 1.66 | AJ185: 117.78 | AK185: 239 | AL185: 1.98 | AM185: 95.90 | AN185: 295 | AO185: 2.02 | AP185: 83.23
C186: 남 | D186: 1,619 | E186: 1.91 | G186: 135 | H186: 1.94 | J186: 49 | K186: 1.76 | M186: 119 | N186: 1.90 | P186: 146 | Q186: 2.03 | S186: 282 | T186: 2.13 | V186: 171 | W186: 1.85 | Y186: 145 | Z186: 1.76 | AB186: 133 | AC186: 1.64 | AE186: 135 | AF186: 2.03 | AH186: 53 | AI186: 1.63 | AK186: 117 | AL186: 2.08 | AN186: 134 | AO186: 1.90
C187: 여 | D187: 1,583 | E187: 1.93 | G187: 99 | H187: 1.56 | J187: 49 | K187: 1.93 | M187: 114 | N187: 1.88 | P187: 148 | Q187: 2.01 | S187: 262 | T187: 1.95 | V187: 177 | W187: 2.12 | Y187: 176 | Z187: 2.26 | AB187: 133 | AC187: 1.72 | AE187: 97 | AF187: 1.68 | AH187: 45 | AI187: 1.70 | AK187: 122 | AL187: 1.89 | AN187: 161 | AO187: 2.14
B188: 59세 | C188: 계 | D188: 3,040 | E188: 1.82 | F188: 104.58 | G188: 238 | H188: 1.79 | I188: 105.17 | J188: 93 | K188: 1.75 | L188: 126.83 | M188: 231 | N188: 1.88 | O188: 102.63 | P188: 299 | Q188: 2.05 | R188: 85.71 | S188: 508 | T188: 1.91 | U188: 117.09 | V188: 335 | W188: 1.90 | X188: 98.22 | Y188: 264 | Z188: 1.65 | AA188: 104.65 | AB188: 234 | AC188: 1.48 | AD188: 85.71 | AE188: 231 | AF188: 1.86 | AG188: 140.63 | AH188: 89 | AI188: 1.51 | AJ188: 206.90 | AK188: 241 | AL188: 2.00 | AM188: 88.28 | AN188: 277 | AO188: 1.90 | AP188: 93.71
C189: 남 | D189: 1,554 | E189: 1.84 | G189: 122 | H189: 1.75 | J189: 52 | K189: 1.87 | M189: 117 | N189: 1.87 | P189: 138 | Q189: 1.92 | S189: 274 | T189: 2.07 | V189: 166 | W189: 1.79 | Y189: 135 | Z189: 1.63 | AB189: 108 | AC189: 1.33 | AE189: 135 | AF189: 2.03 | AH189: 60 | AI189: 1.84 | AK189: 113 | AL189: 2.01 | AN189: 134 | AO189: 1.90
C190: 여 | D190: 1,486 | E190: 1.81 | G190: 116 | H190: 1.82 | J190: 41 | K190: 1.61 | M190: 114 | N190: 1.88 | P190: 161 | Q190: 2.18 | S190: 234 | T190: 1.74 | V190: 169 | W190: 2.02 | Y190: 129 | Z190: 1.66 | AB190: 126 | AC190: 1.63 | AE190: 96 | AF190: 1.66 | AH190: 29 | AI190: 1.09 | AK190: 128 | AL190: 1.99 | AN190: 143 | AO190: 1.90
B191: 60세 | C191: 계 | D191: 3,198 | E191: 1.92 | F191: 100.63 | G191: 287 | H191: 2.15 | I191: 100.70 | J191: 104 | K191: 1.95 | L191: 103.92 | M191: 245 | N191: 1.99 | O191: 102.48 | P191: 255 | Q191: 1.75 | R191: 84.78 | S191: 481 | T191: 1.80 | U191: 106.44 | V191: 367 | W191: 2.08 | X191: 107.34 | Y191: 320 | Z191: 1.99 | AA191: 97.53 | AB191: 246 | AC191: 1.55 | AD191: 113.91 | AE191: 243 | AF191: 1.95 | AG191: 118.92 | AH191: 101 | AI191: 1.71 | AJ191: 110.42 | AK191: 252 | AL191: 2.09 | AM191: 86.67 | AN191: 297 | AO191: 2.04 | AP191: 85.63
C192: 남 | D192: 1,604 | E192: 1.90 | G192: 144 | H192: 2.07 | J192: 53 | K192: 1.90 | M192: 124 | N192: 1.98 | P192: 117 | Q192: 1.63 | S192: 248 | T192: 1.87 | V192: 190 | W192: 2.05 | Y192: 158 | Z192: 1.91 | AB192: 131 | AC192: 1.62 | AE192: 132 | AF192: 1.98 | AH192: 53 | AI192: 1.63 | AK192: 117 | AL192: 2.08 | AN192: 137 | AO192: 1.95
C193: 여 | D193: 1,594 | E193: 1.94 | G193: 143 | H193: 2.25 | J193: 51 | K193: 2.00 | M193: 121 | N193: 2.00 | P193: 138 | Q193: 1.87 | S193: 233 | T193: 1.73 | V193: 177 | W193: 2.12 | Y193: 162 | Z193: 2.08 | AB193: 115 | AC193: 1.48 | AE193: 111 | AF193: 1.92 | AH193: 48 | AI193: 1.81 | AK193: 135 | AL193: 2.10 | AN193: 160 | AO193: 2.12
B194: 61세 | C194: 계 | D194: 2,713 | E194: 1.63 | F194: 100.67 | G194: 228 | H194: 1.71 | I194: 79.53 | J194: 82 | K194: 1.54 | L194: 127.78 | M194: 211 | N194: 1.71 | O194: 119.79 | P194: 234 | Q194: 1.61 | R194: 107.08 | S194: 417 | T194: 1.56 | U194: 103.41 | V194: 323 | W194: 1.83 | X194: 105.73 | Y194: 256 | Z194: 1.60 | AA194: 116.95 | AB194: 190 | AC194: 1.20 | AD194: 97.92 | AE194: 189 | AF194: 1.52 | AG194: 119.77 | AH194: 100 | AI194: 1.69 | AJ194: 100.00 | AK194: 192 | AL194: 1.59 | AM194: 100.00 | AN194: 291 | AO194: 2.00 | AP194: 69.19
C195: 남 | D195: 1,361 | E195: 1.61 | G195: 101 | H195: 1.45 | J195: 46 | K195: 1.65 | M195: 115 | N195: 1.84 | P195: 121 | Q195: 1.68 | S195: 212 | T195: 1.60 | V195: 166 | W195: 1.79 | Y195: 138 | Z195: 1.67 | AB195: 94 | AC195: 1.16 | AE195: 103 | AF195: 1.55 | AH195: 50 | AI195: 1.54 | AK195: 96 | AL195: 1.70 | AN195: 119 | AO195: 1.69
C196: 여 | D196: 1,352 | E196: 1.65 | G196: 127 | H196: 2.00 | J196: 36 | K196: 1.42 | M196: 96 | N196: 1.59 | P196: 113 | Q196: 1.53 | S196: 205 | T196: 1.53 | V196: 157 | W196: 1.88 | Y196: 118 | Z196: 1.52 | AB196: 96 | AC196: 1.24 | AE196: 86 | AF196: 1.49 | AH196: 50 | AI196: 1.89 | AK196: 96 | AL196: 1.49 | AN196: 172 | AO196: 2.28
B197: 62세 | C197: 계 | D197: 3,155 | E197: 1.89 | F197: 102.24 | G197: 248 | H197: 1.86 | I197: 87.88 | J197: 105 | K197: 1.97 | L197: 75.00 | M197: 245 | N197: 1.99 | O197: 135.58 | P197: 321 | Q197: 2.20 | R197: 79.33 | S197: 472 | T197: 1.77 | U197: 97.49 | V197: 368 | W197: 2.09 | X197: 103.31 | Y197: 278 | Z197: 1.73 | AA197: 112.21 | AB197: 220 | AC197: 1.39 | AD197: 115.69 | AE197: 235 | AF197: 1.89 | AG197: 132.67 | AH197: 92 | AI197: 1.56 | AJ197: 91.67 | AK197: 237 | AL197: 1.96 | AM197: 95.87 | AN197: 334 | AO197: 2.29 | AP197: 106.17
C198: 남 | D198: 1,595 | E198: 1.88 | G198: 116 | H198: 1.67 | J198: 45 | K198: 1.62 | M198: 141 | N198: 2.25 | P198: 142 | Q198: 1.97 | S198: 233 | T198: 1.76 | V198: 187 | W198: 2.02 | Y198: 147 | Z198: 1.78 | AB198: 118 | AC198: 1.46 | AE198: 134 | AF198: 2.01 | AH198: 44 | AI198: 1.35 | AK198: 116 | AL198: 2.06 | AN198: 172 | AO198: 2.44
C199: 여 | D199: 1,560 | E199: 1.90 | G199: 132 | H199: 2.07 | J199: 60 | K199: 2.36 | M199: 104 | N199: 1.72 | P199: 179 | Q199: 2.43 | S199: 239 | T199: 1.78 | V199: 181 | W199: 2.16 | Y199: 131 | Z199: 1.68 | AB199: 102 | AC199: 1.32 | AE199: 101 | AF199: 1.75 | AH199: 48 | AI199: 1.81 | AK199: 121 | AL199: 1.88 | AN199: 162 | AO199: 2.15
B200: 63세 | C200: 계 | D200: 3,082 | E200: 1.85 | F200: 97.44 | G200: 277 | H200: 2.08 | I200: 89.73 | J200: 108 | K200: 2.03 | L200: 120.41 | M200: 264 | N200: 2.14 | O200: 97.01 | P200: 303 | Q200: 2.08 | R200: 94.23 | S200: 430 | T200: 1.61 | U200: 105.74 | V200: 299 | W200: 1.70 | X200: 92.90 | Y200: 287 | Z200: 1.79 | AA200: 100.70 | AB200: 238 | AC200: 1.50 | AD200: 93.50 | AE200: 223 | AF200: 1.79 | AG200: 110.38 | AH200: 93 | AI200: 1.57 | AJ200: 86.00 | AK200: 241 | AL200: 2.00 | AM200: 99.17 | AN200: 319 | AO200: 2.19 | AP200: 88.76
C201: 남 | D201: 1,521 | E201: 1.80 | G201: 131 | H201: 1.88 | J201: 59 | K201: 2.12 | M201: 130 | N201: 2.08 | P201: 147 | Q201: 2.04 | S201: 221 | T201: 1.67 | V201: 144 | W201: 1.56 | Y201: 144 | Z201: 1.74 | AB201: 115 | AC201: 1.42 | AE201: 117 | AF201: 1.76 | AH201: 43 | AI201: 1.32 | AK201: 120 | AL201: 2.13 | AN201: 150 | AO201: 2.13
C202: 여 | D202: 1,561 | E202: 1.90 | G202: 146 | H202: 2.29 | J202: 49 | K202: 1.93 | M202: 134 | N202: 2.22 | P202: 156 | Q202: 2.12 | S202: 209 | T202: 1.56 | V202: 155 | W202: 1.85 | Y202: 143 | Z202: 1.84 | AB202: 123 | AC202: 1.59 | AE202: 106 | AF202: 1.84 | AH202: 50 | AI202: 1.89 | AK202: 121 | AL202: 1.88 | AN202: 169 | AO202: 2.24
... 141 more rows

Sheet 주민수 및 세대현황(대전광역시)
B2: 주민수 및 세대현황
B3: 행정기관: | C3: 대전광역시
B4: 작성기준: | C4: 2025.07 현재 | H4: 출력일자 : 2025.08.01 | L4: (단위 : 명)
B5: 행정기관 | D5: 주민수 | G5: 구 성 비 | J5: 성비 | K5: 세대수 | L5: 세대당인구
D6: 계 | E6: 남 | F6: 여 | G6: 계 | H6: 남 | I6: 여
B7: 대전광역시 | D7: 1,440,682 | E7: 718,010 | F7: 722,672 | G7: 100.00 | H7: 49.84 | I7: 50.16 | J7: 99.35 | K7: 694,868 | L7: 2.07
B8: 대덕구 | D8: 166,691 | E8: 84,637 | F8: 82,054 | G8: 11.57 | H8: 5.87 | I8: 5.70 | J8: 103.15 | K8: 81,128 | L8: 2.05
B9: 동구 | D9: 219,436 | E9: 110,564 | F9: 108,872 | G9: 15.23 | H9: 7.67 | I9: 7.56 | J9: 101.55 | K9: 112,601 | L9: 1.95
B10: 중구 | D10: 226,131 | E10: 110,778 | F10: 115,353 | G10: 15.70 | H10: 7.69 | I10: 8.01 | J10: 96.03 | K10: 109,598 | L10: 2.06
B11: 서구 | D11: 461,910 | E11: 226,345 | F11: 235,565 | G11: 32.06 | H11: 15.71 | I11: 16.35 | J11: 96.09 | K11: 220,870 | L11: 2.09
B12: 유성구 | D12: 366,514 | E12: 185,686 | F12: 180,828 | G12: 25.44 | H12: 12.89 | I12: 12.55 | J12: 102.69 | K12: 170,671 | L12: 2.15
